{"text_format":"1","workbook":"xlsx","n_sheets":38,"sheets":["Start","Wandanschluss Holzdecke","Daten Holz","Wandanschluss Betondecke","Daten Beton","Titan F TCF200 (Beton)","WHT340","WHT440","WHT plate 540","WHT340 + Hilti Anker","WHT440 + Hilti Anker","WHT plate 540 +Hilti Anker","HTT4","HTT5","HTT22E","AH39050_2","HD340M12G","HD420M16G","HTT4 + Hilti Anker","HTT5 + Hilti Anker","HTT22E + Hilti Anker","AH39050_2 + Hilti Anker","HD340M12G + Hilti Anker","HD420M16G + Hilti Anker","AE 76-R (Beton)","AE 116 (Beton)","AE 76-R + Hilti Anker","AE 116 + Hilti Anker","Titan Plate C TCP200 (Beton)","Titan F TCF200 + Hilti Anker","TitanPlate TCP200 + Hilti Anker","Titan F TCF200","AE 76-R","AE 116","Typ V 65x135x90","BAN2025xx","BAN208025 ","BAN2040xx"],"not_rendered":{"charts":0,"images":25,"macros":1,"external_links":0,"defined_names":14,"comments":0,"pivot_tables":0},"unopened":[],"bounds":{"document_bytes":16777216,"sheet_cells":100000,"rows_first":2000,"rows_last":500,"rows_between":2000,"halvings":0,"cell_chars":16384,"cell_head_chars":4096},"cells_cut":0,"cells_raw":0,"read":"whole","date_system":"1900"}

{"sheet":"Start","index":0,"n_rows":6,"n_cols":1,"rows_kept":6,"cut":false,"hidden":false,"merged":[[0,0,1,19],[3,0,4,19],[6,0,41,19],[2,0,2,19],[5,0,5,19]]}
[]
[]
["Welche Bemessung möchten Sie durchführen?"]
[]
[]
["                       Wandanschluss an eine Decke aus "]

{"sheet":"Wandanschluss Holzdecke","index":1,"n_rows":57,"n_cols":140,"rows_kept":57,"cut":false,"hidden":false,"merged":[[19,16,19,18],[20,16,20,18],[23,20,23,22],[26,16,26,18],[27,16,27,18],[42,16,42,18],[43,16,43,18],[0,0,1,18],[0,19,0,35],[1,19,1,35],[2,0,2,12],[2,23,2,35],[3,23,3,35],[23,24,23,26],[39,16,39,18],[41,16,41,18],[28,16,28,18],[29,16,29,18],[32,16,32,18],[33,16,33,18],[34,16,34,18],[37,16,37,18],[38,16,38,18],[23,16,23,19],[55,30,55,32],[56,30,56,32],[0,36,1,54],[0,55,0,71],[1,55,1,71],[2,36,2,48],[2,59,2,71],[3,59,3,71],[12,56,12,61],[13,56,13,61],[48,30,48,32],[50,30,50,32],[51,30,51,32],[52,30,52,32],[53,30,53,32],[54,30,54,32],[19,56,19,61],[20,56,20,61],[21,56,21,61],[15,56,15,61],[16,56,16,61],[47,30,47,32],[46,30,46,32],[35,56,35,60],[52,56,52,60],[53,56,53,60],[54,56,54,60],[40,95,40,99],[10,95,10,99],[34,56,34,60],[36,56,36,60],[37,56,37,60],[40,56,40,60],[41,57,41,60],[42,56,42,60],[22,56,22,61],[23,56,23,61],[27,56,27,60],[28,56,28,60],[29,56,29,60],[33,56,33,60],[11,95,11,99],[17,95,17,99],[18,95,18,99],[19,95,19,99],[24,56,24,61],[30,56,30,60],[39,95,39,99],[0,72,1,90],[0,96,0,107],[1,96,1,107],[2,72,2,84],[2,95,2,107],[3,95,3,107],[55,56,55,60],[56,56,56,60],[0,132,0,143],[1,139,1,143],[2,108,2,120],[2,131,2,143],[3,131,3,143],[11,126,11,128],[12,126,12,128],[13,126,13,128],[0,108,1,126],[25,135,25,137],[26,126,26,133],[26,135,26,137],[27,126,27,133],[27,135,27,137],[29,135,29,137],[14,126,14,128],[47,123,47,125],[37,123,37,125],[38,123,38,125],[40,123,40,125],[41,123,41,125],[42,123,42,125],[44,123,44,125],[22,95,22,99],[27,95,27,99],[32,95,32,99],[38,95,38,99],[28,95,28,99],[29,95,29,99],[33,95,33,99],[34,95,34,99],[23,95,23,99],[24,95,24,99],[45,57,45,59],[14,56,14,61],[19,126,19,128],[20,126,20,128],[22,135,22,137],[23,135,23,137],[24,126,24,133],[24,135,24,137],[45,123,45,125]]}
["Statik Wandanschluss Holz",null,null,null,null,null,null,null,null,null,null,null,null,null,null,null,null,null,null,{"$f":"TODAY()","v":"2022-04-23"},null,null,null,null,null,null,null,null,null,null,null,null,null,null,null,null,{"$f":"A1","v":"Statik Wandanschluss Holz"},null,null,null,null,null,null,null,null,null,null,null,null,null,null,null,null,null,null,{"$f":"TODAY()","v":"2022-04-23"},null,null,null,null,null,null,null,null,null,null,null,null,null,null,null,null,"Statik Wandanschluss Holz",null,null,null,null,null,null,null,null,null,null,null,null,null,null,null,null,null,null,null,null,null,null,null,{"$f":"TODAY()","v":"2022-04-23"},null,null,null,null,null,null,null,null,null,null,null,{"$f":"BU1","v":"Statik Wandanschluss Holz"},null,null,null,null,null,null,null,null,null,null,null,null,null,null,null,null,null,null,null,null,null,null,null,{"$f":"TODAY()","v":"2022-04-23"}]
[null,null,null,null,null,null,null,null,null,null,null,null,null,null,null,null,null,null,null,"Seite 1/4",null,null,null,null,null,null,null,null,null,null,null,null,null,null,null,null,null,null,null,null,null,null,null,null,null,null,null,null,null,null,null,null,null,null,null,"Seite 2/4",null,null,null,null,null,null,null,null,null,null,null,null,null,null,null,null,null,null,null,null,null,null,null,null,null,null,null,null,null,null,null,null,null,null,null,null,null,null,null,null,"Seite 3/4",null,null,null,null,null,null,null,null,null,null,null,null,null,null,null,null,null,null,null,null,null,null,null,null,null,null,null,null,null,null,null,null,null,null,null,null,null,null,null,null,null,null,"Sete 4/4"]
[null,null,null,null,null,null,null,null,null,null,null,null,null,null,null,null,null,null,null,"Bauvorhaben:",null,null,null,"Beispielprojekt",null,null,null,null,null,null,null,null,null,null,null,null,null,null,null,null,null,null,null,null,null,null,null,null,null,null,null,null,null,null,null,"Bauvorhaben:",null,null,null,{"$f":"IF(X3=\"\",\"\",X3)","v":"Beispielprojekt"},null,null,null,null,null,null,null,null,null,null,null,null,null,null,null,null,null,null,null,null,null,null,null,null,null,null,null,null,null,null,null,"Bauvorhaben:",null,null,null,{"$f":"IF(X3=\"\",\"\",X3)","v":"Beispielprojekt"},null,null,null,null,null,null,null,null,null,null,null,null,null,null,null,null,null,null,null,null,null,null,null,null,null,null,null,null,null,null,null,"Bauvorhaben:",null,null,null,{"$f":"IF(BH3=\"\",\"\",BH3)","v":"Beispielprojekt"}]
[null,null,null,null,null,null,null,null,null,null,null,null,null,null,null,null,null,null,null,"Position:",null,null,null,"Beispiel ",null,null,null,null,null,null,null,null,null,null,null,null,null,null,null,null,null,null,null,null,null,null,null,null,null,null,null,null,null,null,null,"Position:",null,null,null,{"$f":"IF(X4=\"\",\"\",X4)","v":"Beispiel "},null,null,null,null,null,null,null,null,null,null,null,null,null,null,null,null,null,null,null,null,null,null,null,null,null,null,null,null,null,null,null,"Position:",null,null,null,{"$f":"X4","v":"Beispiel "},null,null,null,null,null,null,null,null,null,null,null,null,null,null,null,null,null,null,null,null,null,null,null,null,null,null,null,null,null,null,null,"Position:",null,null,null,{"$f":"BH4","v":"Beispiel "}]
[]
["Landstraße 25, D - 79809 Weilheim - Bannholz",null,null,null,null,null,null,null,null,null,null,null,null,null,null,null,null,null,null,null,null,null,null,null,null,null,null,null,null,null,null,null,null,null,null,null,"Landstraße 25, D - 79809 Weilheim - Bannholz",null,null,null,null,null,null,null,null,null,null,null,null,null,null,null,null,null,null,null,null,null,null,null,null,null,null,null,null,null,null,null,null,null,null,null,"Landstraße 25, D - 79809 Weilheim - Bannholz",null,null,null,null,null,null,null,null,null,null,null,null,null,null,null,null,null,null,null,null,null,null,null,null,null,null,null,null,null,null,null,null,null,null,null,"Landstraße 25, D - 79809 Weilheim - Bannholz"]
[]
[null,null,"Berechnung Wandanschluss Holz (Oktober 2021)",null,null,null,null,null,null,null,null,null,null,null,null,null,null,null,null,null,null,null,null,null,null,null,null,null,null,null,null,null,null,null,null,null,null,null,{"$f":"C8","v":"Berechnung Wandanschluss Holz (Oktober 2021)"},null,null,null,null,null,null,null,null,null,null,null,null,null,null,null,null,null,null,null,null,null,null,null,null,null,null,null,null,null,null,null,null,null,null,null,{"$f":"C8","v":"Berechnung Wandanschluss Holz (Oktober 2021)"},null,null,null,null,null,null,null,null,null,null,null,null,null,null,null,null,null,null,null,null,null,null,null,null,null,null,null,null,null,null,null,null,null,null,null,{"$f":"C8","v":"Berechnung Wandanschluss Holz (Oktober 2021)"}]
[]
[null,null,null,null,null,null,null,null,null,null,null,null,null,null,null,null,null,null,null,null,null,null,null,null,null,null,null,null,null,null,null,null,null,null,null,null,null,null,"3. Verbindungsmittel"]
[null,null,null,null,null,null,null,null,null,null,null,null,null,null,null,null,null,null,null,null,null,null,null,null,null,null,null,null,null,null,null,null,null,null,null,null,null,null,null,null,null,null,null,null,null,null,null,null,null,null,null,null,null,null,null,null,null,null,null,null,null,null,null,null,null,null,null,null,null,null,null,null,null,null,"Nachweis der Quertragfähigkeit",null,null,null,null,null,null,null,null,null,"ηV,1","=","td,Wand/(VR,d,y /(bElement/1000))",null,null,null,null,null,null,null,"=",{"$f":"AE51/(BE54/(Y24/1000))","v":8.856250000000003E-2}]
[null,null,null,null,null,null,null,null,null,null,null,null,null,null,null,null,null,null,null,null,null,null,null,null,null,null,null,null,null,null,null,null,null,null,null,null,null,null,"Zugverankerung der abghebenden Kräfte",null,null,null,null,null,null,null,null,null,null,null,null,null,null,null,null,null,null,null,null,null,null,null,null,null,null,null,null,null,null,null,null,null,null,null,"Nachweis der Tragfähigkeit auf Druck",null,null,null,null,null,null,null,null,null,null,null,null,"ηDruck",null,"=","Fc,d/Rd,Randrippe",null,null,null,"=",{"$f":"AE53/BE57","v":7.1782603892753108E-2},null,null,null,null,null,null,null,null,null,null,null,null,null,null,"Rohdichte Koppelbrett",null,null,null,null,null,null,null,null,null,null,null,null,"ρko",null,"=",{"$f":"_xlfn.XLOOKUP(BE34,'Daten Holz'!A18:A20,'Daten Holz'!D18:D20)","v":505},null,null,"kg/m³"]
[null,null,null,null,null,null,null,null,null,null,null,null,null,null,null,null,null,null,null,null,null,null,null,null,null,null,null,null,null,null,null,null,null,null,null,null,null,null,"Hersteller Zuganker / Rispenband",null,null,null,null,null,null,null,null,null,null,null,null,null,null,null,null,null,"Simpson Strong Tie",null,null,null,null,null,null,null,null,null,null,null,null,null,null,null,null,null,null,null,null,null,null,null,null,null,null,null,null,null,null,null,null,null,null,null,null,null,null,null,null,null,null,null,null,null,null,null,null,null,null,null,null,null,"Rohdichte Element",null,null,null,null,null,null,null,null,null,null,null,null,"ρEl",null,"=",420,null,null,"kg/m³"]
[null,null,null,null,null,null,null,null,null,null,null,null,null,null,null,null,null,null,null,null,null,null,null,null,null,null,null,null,null,null,null,null,null,null,null,null,null,null,"Typ",null,null,null,null,null,null,null,null,null,null,null,null,null,null,null,null,null,"BAN2040xx",null,null,null,null,null,null,null,null,null,null,null,null,null,null,null,null,null,null,null,null,null,null,null,null,null,null,null,null,null,null,null,null,null,null,null,null,null,null,null,null,null,null,null,null,null,null,null,null,null,null,null,null,null,"gemittelte Rohdichte",null,null,null,null,null,null,null,null,null,null,null,null,"ρm",null,"=",{"$f":"(DW13+DW12)/2","v":462.5},null,null,"kg/m³"]
[null,null,null,null,null,null,null,null,null,null,null,null,null,null,null,null,null,null,null,null,null,null,null,null,null,null,null,null,null,null,null,null,null,null,null,null,null,null,"Nägel Typ ",null,null,null,null,null,null,null,null,null,null,null,null,null,null,null,null,null,{"$f":"_xlfn.XLOOKUP(BE14,'Daten Holz'!C30:C33,'Daten Holz'!F30:F33)","v":"CNA 4x60"},null,null,null,null,null,null,null,null,null,null,null,null,null,null,null,null,null,null,null,null,null,null,null,null,null,null,null,null,null,null,null,null,null,null,null,null,null,null,null,null,null,null,null,null,null,null,null,null,null,null,null,null,null,"Klammerdurchmesser",null,null,null,null,null,null,null,null,null,null,null,null,"dKlammer",null,"=",1.83,null,null,"mm"]
[null,null,null,null,null,null,null,null,null,null,null,null,null,null,null,null,null,null,null,null,null,null,null,null,null,null,null,null,null,null,null,null,null,null,null,null,null,null,"Anzahl Nägel",null,null,null,null,null,null,null,null,null,null,null,null,null,"n",null,null,"=",{"$f":"_xlfn.XLOOKUP(BE14,'Daten Holz'!C30:C33,'Daten Holz'!E30:E33)","v":8},null,null,null,null,null,null,null,null,null,null,null,null,null,null,null,null,null,"Nachweis der Anschlüsse"]
[null,null,null,null,null,null,null,null,null,null,null,null,null,null,null,null,null,null,null,null,null,null,null,null,null,null,null,null,null,null,null,null,null,null,null,null,null,null,"Tragfähigkeit der Zugverankerung",null,null,null,null,null,null,null,null,null,null,null,null,null,"Rt,d,Zuganker",null,null,"=",{"$f":"_xlfn.XLOOKUP(BE14,'Daten Holz'!C30:C33,'Daten Holz'!H30:H33)","v":13.692307692307692},null,null,null,null,null,null,null,null,null,null,null,null,null,null,null,null,null,"Nachweis der Zugverankerung",null,null,null,null,null,null,null,null,null,null,null,null,null,null,null,null,null,null,null,null,null,null,null,null,null,null,null,null,null,null,null,null,null,null,null,"Verschiebungsmodul der Klammer nach [DIN EN 1995-1-1] 7.1 "]
[null,null,null,null,null,null,null,null,null,null,null,null,null,null,null,null,null,null,null,null,null,null,null,null,null,null,null,null,null,null,null,null,null,null,null,null,null,null,null,null,null,null,null,null,null,null,null,null,null,null,null,null,null,null,null,null,null,null,null,null,null,null,null,null,null,null,null,null,null,null,null,null,null,null,null,null,null,"Anzahl der Zuganker je Wandende",null,null,null,null,null,null,null,null,null,null,null,null,null,null,null,"nz","=",1,null,null,null,null,"Stück"]
[null,null,"Scheibengeometrie",null,null,null,null,null,null,null,null,null,null,null,null,null,null,null,null,null,null,null,null,null,null,null,null,null,null,null,null,null,null,null,null,null,null,null,"Schubsicherung der Horizontalkräfte",null,null,null,null,null,null,null,null,null,null,null,null,null,null,null,null,null,null,null,null,null,null,null,null,null,null,null,null,null,null,null,null,null,null,null,null,null,null,null,null,null,null,null,null,null,null,null,null,null,null,null,null,"Rt,d,Zuganker",null,null,"=",{"$f":"BE17","v":13.692307692307692},null,null,null,null,"kN",null,null,null,null,null,null,null,null,null,"Der Verschiebungsmodul Kser für die Klammer gilt je Stift und kann daher mit dem Faktor 2 multipliziert werden."]
[null,null,"Scheibenbreite: ",null,null,null,null,null,null,null,null,null,null,"bs",null,"=",4.8,null,null,"m",null,null,null,null,null,null,null,null,null,null,null,null,null,null,null,null,null,null,"Hersteller Schubanker ",null,null,null,null,null,null,null,null,null,null,null,null,null,null,null,null,null,"Simpson Strong Tie",null,null,null,null,null,null,null,null,null,null,null,null,null,null,null,null,null,null,null,null,null,null,null,null,null,null,null,null,null,"ηZug",null,"=","Ft,d/(Rt,d,Zuganker*nz)",null,null,null,null,"=",{"$f":"AE55/(BE17*CR18)","v":0.80444707273802507},null,null,null,null,null,null,null,null,null,null,null,null,null,null,null,null,null,null,null,"Kser",null,"=","(ρm1,5/80 * dKlammer0,8) * 2",null,null,null,null,null,null,"=",{"$f":"(DW14^1.5 / 80 * DW15 ^ 0.8) * 2","v":403.24453107676152},null,null,"N/mm"]
[null,null,"Scheibenhöhe: ",null,null,null,"Standard 2,48 oder 2,98",null,null,null,null,null,null,"hs",null,"=",3.2,null,null,"m",null,null,null,null,null,null,null,null,null,null,null,null,null,null,null,null,null,null,"Typ",null,null,null,null,null,null,null,null,null,null,null,null,null,null,null,null,null,"AE 76-R",null,null,null,null,null,null,null,null,null,null,null,null,null,null,null,null,null,null,null,null,null,null,null,null,null,null,null,null,null,null,null,null,null,null,null,null,null,null,null,null,null,null,null,null,null,null,null,null,null,null,null,null,null,null,null,null,null,null,"KFuge",null,"=","(Kser  / eKl,eff * hS ) / 2",null,null,null,null,null,null,"=",{"$f":"(DW20*1000  / CR39* Q21 ) / 2","v":38711.474983369109},null,null,"N/mm"]
[null,null,null,null,null,null,null,null,null,null,null,null,null,null,null,null,null,null,null,null,null,null,null,null,null,null,null,null,null,null,null,null,null,null,null,null,null,null,"Nägel Typ ",null,null,null,null,null,null,null,null,null,null,null,null,null,null,null,null,null,{"$f":"_xlfn.XLOOKUP(BE21,'Daten Holz'!C55:C57,'Daten Holz'!E55:E57)","v":"CNA4x60"},null,null,null,null,null,null,null,null,null,null,null,null,null,null,null,null,null,"Nachweis der Schubsicherung"]
[null,null,"Lignotrend Element",null,null,null,null,null,null,null,null,null,null,null,null,null,null,"Element",null,null,null,"Höhe [mm]",null,null,null,null,"Elementbreite [mm]",null,null,null,null,null,null,null,null,null,null,null,"Anzahl Nägel",null,null,null,null,null,null,null,null,null,null,null,null,null,null,null,null,null,{"$f":"_xlfn.XLOOKUP(BE21,'Daten Holz'!C55:C57,'Daten Holz'!D55:D57)","v":"voll ausgenagelt"},null,null,null,null,null,"(Anordnung/weiterführende Hinweise",null,null,null,null,null,null,null,null,null,null,null,null,null,null,"Anzahl der Winkel je Wand",null,null,null,null,null,null,null,null,null,null,null,null,null,null,null,"ns","=",{"$f":"BE25","v":3},null,null,null,null,"Stück",null,null,null,null,null,null,null,null,null,"Anzahl der Koppelfugen",null,null,null,null,null,null,null,null,null,null,null,"nKoppelf.",null,null,null,null,null,null,null,null,null,null,null,"=",{"$f":"ROUND((bsholzbem /(Y24/1000))-1,0)","v":7},null,null,"Stück"]
[null,null,null,null,null,null,null,null,null,null,null,null,null,null,null,null,"Uni Q3-110",null,null,null,{"$f":"_xlfn.XLOOKUP(Q24,'Daten Holz'!A3:A5,'Daten Holz'!B3:B5)","v":110},null,null,null,625,null,null,null,null,null,null,null,null,null,null,null,null,null,"Tragfähigkeit einer Schubverankerung",null,null,null,null,null,null,null,null,null,null,null,null,null,"Rt,d,Zuganker",null,null,"=",{"$f":"ROUND(_xlfn.XLOOKUP(BE21,'Daten Holz'!C55:C57,'Daten Holz'!G55:G57),2)","v":6},null,null,null,null,null,"kN",null,null,"siehe Herstellerangaben)",null,null,null,null,null,null,null,null,null,null,null,null,null,null,null,null,null,null,null,null,null,null,null,null,"Rt,d,Schubanker",null,null,null,"=",{"$f":"BE24","v":6},null,null,null,null,"kN",null,null,null,null,null,null,null,null,null,"Verformung infolge der Koppelfugen",null,null,null,null,null,null,null,null,null,null,null,"uges,Fuge",null,null,"=","Ft,k*(nKoppelf.+1)/KFuge*(hS/bS)",null,null,null,null,null,null,null,"=",{"$f":"AE54 * (EF23 +1) / (DW21 / 1000) * (Q21 / bsholzbem)","v":1.0116769972922739},null,null,"mm"]
[null,null,null,null,null,null,null,null,null,null,null,null,null,null,null,null,null,null,null,null,null,null,null,null,null,null,null,null,null,null,null,null,null,null,null,null,null,null,"Anzahl der Winkel über Wandlänge",null,null,null,null,null,null,null,null,null,null,null,null,null,null,null,"ns","=",3,null,null,null,null,null,"Stück",null,null,null,null,null,null,null,null,null,null,null,null,null,null,null,null,null,null,null,null,null,null,"ηSchub",null,"=","Hd,ges/(ns*Rt,d,Schubanker)",null,null,null,null,null,"=",{"$f":"Q40/(CR24*CR23)","v":0.72666666666666679},null,null,null,null,null,null,null,null,null,null,null,null,null,null,"Schubverzerrung der Elemente",null,null,null,null,null,null,null,null,null,null,null,"GAef,Scheibe",null,null,"=","GAef / bElement * bS",null,null,null,null,null,null,null,"=",{"$f":"BE55/(Y24/1000) * bsholzbem","v":58406.400000000001},null,null,"kN"]
[null,null,"Schwelle:",null,null,null,null,null,null,null,null,null,null,null,null,null,null,null,null,null,null,null,null,null,null,null,null,null,null,null,null,null,null,null,null,null,null,null,null,null,null,null,null,null,null,null,null,null,null,null,null,null,null,null,null,null,null,null,null,null,null,null,null,null,null,null,null,null,null,null,null,null,null,null,null,null,null,null,null,null,null,null,null,null,null,null,null,null,null,null,null,null,null,null,null,null,null,null,null,null,null,null,null,null,null,null,null,null,null,null,null,null,null,null,null,null,null,null,null,null,null,null,"uges,Elemente",null,null,"=","hS * (  Hw,k,ges * 1) / GAef,Scheibe",null,null,null,null,null,null,null,"=",{"$f":"Q21* ( Q38 * 1) / EF25","v":4.7775586237124701E-4},null,null,"mm"]
[null,null,"Schwellenmaterial",null,null,null,null,null,null,null,null,null,null,null,null,null,"GL24h",null,null,null,null,null,null,null,null,null,null,null,null,null,null,null,null,null,null,null,null,null,"Koppelfugen Schwelle/Rähm zu Wandelement",null,null,null,null,null,null,null,null,null,null,null,null,null,null,null,null,null,null,null,null,null,null,null,null,null,null,null,null,null,null,null,null,null,null,null,"Nachweis der Koppelfugen Schwelle/Rähm zu Wandelement",null,null,null,null,null,null,null,null,null,null,null,null,null,null,null,null,null,null,null,null,null,null,null,null,null,null,null,null,null,null,null,null,null,null,null,"Gesamtverformung der Scheibe",null,null,null,null,null,null,null,null,null,null,null,"uges",null,null,"=","uges,Fuge + uges,Elemente",null,null,null,null,null,null,null,"=",{"$f":"EF26+EF24","v":1.0121547531546451},null,null,"mm"]
[null,null,"Standardschwellenhöhen 120 oder 240mm",null,null,null,null,null,null,null,null,null,null,null,null,null,null,null,null,null,null,null,null,null,null,null,null,null,null,null,null,null,null,null,null,null,null,null,"Klammern",null,null,null,null,null,null,null,null,null,null,null,null,null,null,null,"Klammertyp",":","1,83 x 63",null,null,null,null,"mm",null,null,null,null,null,null,null,null,null,null,null,null,null,null,null,"Anzahl Klammern / Meter Schwelle",null,null,null,null,null,null,null,null,null,null,null,null,null,null,null,"nK","=",{"$f":"BE31","v":10},null,null,null,null,"Stück",null,null,null,null,null,null,null,null,null,"maximal zulässige Verformung",null,null,null,null,null,null,null,null,null,null,null,"umax",null,null,"=","hs/500",null,null,null,null,null,null,null,"=",{"$f":"Q21*1000 / 500","v":6.4},null,null,"mm"]
[null,null,"Schwellenhöhe oben",null,null,null,null,null,null,null,null,null,null,null,null,null,240,null,null,"mm",null,null,null,null,null,null,null,null,null,null,null,null,null,null,null,null,null,null,"Tragfähigkeit pro Klammer",null,null,null,null,null,null,null,null,null,null,null,null,null,"Rk,Klammer",null,null,"=",0.73,null,null,null,null,"kN",null,null,null,null,null,null,null,null,null,null,null,null,null,null,null,null,null,null,null,null,null,null,null,null,null,null,null,null,null,"Rv,d,Klammer",null,null,"=",{"$f":"BE30","v":0.56153846153846154},null,null,null,null,"kN"]
[null,null,"Schwellenhöhe unten",null,null,null,null,null,null,null,null,null,null,null,null,null,120,null,null,"mm",null,null,null,null,null,null,null,null,null,null,null,null,null,null,null,null,null,null,null,null,null,null,null,null,null,null,null,null,null,null,null,null,"Rd,Klammer",null,null,"=",{"$f":"Q35*BE29/Q33","v":0.56153846153846154},null,null,null,null,"kN",null,null,null,null,null,null,null,null,null,null,null,null,null,null,null,null,null,null,null,null,null,null,"ηSchwelle",null,null,"=","td,Wand/(nk*Rv,d,Klammer)",null,null,null,null,null,"=",{"$f":"AE51/(CR29*CR28)","v":0.48527397260273986},null,null,null,null,null,null,null,null,null,null,null,null,null,null,"Nachweis der Verformungen",null,null,null,null,null,null,null,null,null,null,null,null,null,null,null,null,null,null,"ηu","=","uges/umax",null,null,"=",{"$f":"EF27/EF28","v":0.1581491801804133}]
[null,null,null,null,null,null,null,null,null,null,null,null,null,null,null,null,null,null,null,null,null,null,null,null,null,null,null,null,null,null,null,null,null,null,null,null,null,null,"Anzahl Klammern / Meter Schwelle",null,null,null,null,null,null,null,null,null,null,null,null,null,null,"nK",null,"=",10,null,null,null,null,"Stück/m"]
[null,null,"1. Eingabe der Belastungen",null,null,null,null,null,null,null,null,null,null,null,null,null,null,null,null,null,null,null,null,null,null,null,null,null,null,null,null,null,null,null,null,null,null,null,null,null,null,null,null,null,null,null,null,null,null,null,null,null,null,null,null,null,null,null,null,null,null,null,null,null,null,null,null,null,null,null,null,null,null,null,"Nachweis der Koppelfugen der Wandelemente "]
[null,null,"Teilsicherheitsbeiwerte",null,null,null,null,null,null,null,null,null,null,"уM",null,"=",1.3,null,null,null,null,null,null,null,null,null,null,null,null,null,null,null,null,null,null,null,null,null,"Koppelfuge der Wandelemente ",null,null,null,null,null,null,null,null,null,null,null,null,null,null,null,null,null,null,null,null,null,null,null,null,null,null,null,null,null,null,null,null,null,null,null,null,null,null,"Koppelbrett:",null,null,null,null,null,null,null,null,null,null,null,null,null,null,null,"nK","=",1,null,null,null,null,"Stück"]
[null,null,null,null,null,null,null,null,null,null,null,null,null,"уG,stab",null,"=",0.9,null,null,null,null,null,null,null,null,null,null,null,null,null,null,null,null,null,null,null,null,null,"Koppelbrett",null,null,null,null,null,null,null,null,null,null,null,null,null,null,null,"Material",":","DreiS.- Platte",null,null,null,null,null,null,null,null,null,null,null,null,null,null,null,null,null,null,null,null,null,null,null,null,null,null,null,null,null,null,null,null,null,null,null,"Rv,d,kop",null,"=",{"$f":"BE38","v":55.03846153846154},null,null,null,null,"kN/m",null,null,null,null,null,null,null,null,null,"Zusammenfassung der Nachweise"]
[null,null,"Modifikationsbeiwert",null,null,null,null,null,null,null,null,null,null,"kmod",null,"=",1,null,null,null,null,null,null,"(bei Belastung aus Erdbeben 1,1)",null,null,null,null,null,null,null,null,null,null,null,null,null,null,null,"Dicke",null,null,null,null,null,null,null,null,null,null,null,null,null,"dkop",null,"=",26.5,null,null,null,null,"mm",null,null,null,null,null,null,null,null,null,null,null,null,null,null,null,null,null,null,null,null,null,null,null,"ηKoppelbrett",null,null,"=","td,Wand/(nk*Rv,d,kop)",null,null,null,null,"=",{"$f":"AE51/(CR34*CR33)","v":4.9510831586303296E-2}]
[null,null,null,null,null,null,null,null,null,null,null,null,null,null,null,null,null,null,null,null,null,null,null,null,null,null,null,null,null,null,null,null,null,null,null,null,null,null,null,"Schubtragfähigkeit",null,null,null,null,null,null,null,null,null,null,null,null,null,"fv,k",null,"=",{"$f":"_xlfn.XLOOKUP(BE34,'Daten Holz'!A18:A20,'Daten Holz'!B18:B20)","v":2.7},null,null,null,null,"N/mm²",null,null,null,null,null,null,null,null,null,null,null,null,null,null,null,null,"(für den Nachweis der Schubtragfähigkeit wird auf der sicheren Seite liegend nur ein Koppelbrett berücksichtigt)",null,null,null,null,null,null,null,null,null,null,null,null,null,null,null,null,null,null,null,null,null,null,null,null,null,null,null,null,null,null,null,"GZT"]
[null,null,"Horizontallasten am Wandkopf infolge Wind/Erdbeben",null,null,null,null,null,null,null,null,null,null,null,null,null,null,null,null,null,null,null,null,null,null,null,null,null,null,null,null,null,null,null,null,null,null,null,null,null,null,null,null,null,null,null,null,null,null,"fv,d",null,"=","fv,k*kmod/уm",null,null,"=",{"$f":"_xlfn.XLOOKUP(BE34,'Daten Holz'!A18:A20,'Daten Holz'!B18:B20)*Q35/Q33","v":2.0769230769230771},null,null,null,null,"N/mm²",null,null,null,null,null,null,null,null,null,null,null,null,null,null,null,null,null,null,null,null,null,null,null,null,null,null,null,null,null,null,null,null,null,null,null,null,null,null,null,null,null,null,null,null,null,null,null,null,null,{"$f":"AM49","v":"Nachweis der Wandelemente"}]
[null,null,null,null,null,null,null,null,null,null,null,null,null,"Hw,k,ges",null,"=",8.7200000000000006,null,null,"kN",null,null,null,null,null,null,null,null,null,null,null,null,null,null,null,null,null,null,null,"Schubtragfähigkeit bezogen auf dkop",null,null,null,null,null,null,null,null,null,"Rv,d,kop",null,"=","dkop*fv,d",null,null,"=",{"$f":"BE37*BE35","v":55.03846153846154},null,null,null,null,"kN/m",null,null,null,null,null,null,null,null,null,null,null,null,null,null,null,"Klammern:",null,null,null,null,null,null,null,null,null,null,null,null,null,null,null,null,null,null,null,null,null,null,null,null,null,null,null,null,null,null,null,null,null,null,null,"Quertragfähigkiet",null,null,null,null,null,null,null,null,{"$f":"DT38","v":8.856250000000003E-2},{"$f":"CR11","v":8.856250000000003E-2}]
[null,null,null,null,null,null,null,null,null,null,null,null,null,"уq",null,"=",1.5,null,null,null,null,null,null,"(bei Belastung aus Erdbeben 1,0)",null,null,null,null,null,null,null,null,null,null,null,null,null,null,null,null,null,null,null,null,null,null,null,null,null,null,null,null,null,null,null,null,null,null,null,null,null,null,null,null,null,null,null,null,null,null,null,null,null,null,null,null,null,"effektiver Klammerabstand",null,null,null,null,null,null,null,null,null,null,null,null,null,null,"eKl,ef",null,"=",16.666666666666668,null,null,null,null,"mm",null,null,null,null,null,null,null,null,null,null,null,null,"Drucktragfähigkeit",null,null,null,null,null,null,null,null,{"$f":"DT39","v":7.1782603892753108E-2},{"$f":"CR12","v":7.1782603892753108E-2}]
[null,null,null,null,null,null,null,null,"Hd,ges",null,"=","уq * Hw,k,ges",null,null,null,"=",{"$f":"Q38*Q39","v":13.080000000000002},null,null,"kN",null,null,null,null,null,null,null,null,null,null,null,null,null,null,null,null,null,null,"Klammern ",null,null,null,null,null,null,null,null,null,null,null,null,null,null,null,null,null,"Klammertyp wie bei Koppelfuge Schwelle/Rähm",null,null,null,null,null,null,null,null,null,null,null,null,null,null,null,null,null,null,null,null,null,null,null,null,null,null,null,null,null,null,null,null,null,null,"Rv,d,Klammer",null,null,"=",{"$f":"BE30","v":0.56153846153846154},null,null,null,null,"kN",null,null,null,null,null,null,null,null,null,null,{"$f":"BW16","v":"Nachweis der Anschlüsse"}]
[null,null,"Auflast der Wand inklusive Eigengewicht",null,null,null,null,null,null,null,null,null,null,null,null,null,null,null,null,null,null,null,null,null,null,null,null,null,null,null,null,null,null,null,null,null,null,null,null,"Klammerabstand",null,null,null,null,null,null,null,null,null,null,null,null,null,"eKL",null,"=",150,null,null,null,null,"mm",null,null,null,null,null,null,null,null,null,null,null,null,null,null,null,null,null,null,null,"ηKlammer",null,null,"=","td,Wand/(Rv,d,Klammer*1000/eKl,ef)",null,null,null,null,null,null,null,null,"=",{"$f":"AE51/(CR40*1000/CR39)","v":8.0878995433789971E-2},null,null,null,null,null,null,null,null,null,null,null,null,null,null,null,null,null,"Zugverankerung",null,null,null,null,null,null,null,null,{"$f":"DT41","v":0.80444707273802507},{"$f":"CR20","v":0.80444707273802507}]
[null,null,null,null,null,null,null,null,null,null,null,null,null,"gk",null,"=",{"$f":"33.9*2.5/100","v":0.84750000000000003},null,null,"kN/m",null,null,null,null,null,null,null,null,null,null,null,null,null,null,null,null,null,null,null,null,null,null,null,null,null,null,null,null,null,null,null,null,"EC  5, Tabelle 8.3",null,null,"ek,min = 10d ","=",{"$f":"10*IF(BE40=\"1,83 x 63mm\",1.83,1.53)","v":15.3},null,null,null,null,null,null,null,null,null,null,null,null,null,null,null,null,null,null,null,null,null,null,null,null,null,null,null,null,null,null,null,null,null,null,null,null,null,null,null,null,null,null,null,null,null,null,null,null,null,null,null,null,null,null,null,"Schubsicherung",null,null,null,null,null,null,null,null,{"$f":"DT42","v":0.72666666666666679},{"$f":"CR25","v":0.72666666666666679}]
[null,null,null,null,null,null,null,null,null,null,null,null,null,"pk",null,"=",0,null,null,"kN/m",null,null,null,null,null,null,null,null,null,null,null,null,null,null,null,null,null,null,null,"Anzahl der Koppelbretter je Stoß",null,null,null,null,null,null,null,null,null,null,null,null,null,"nKo",null,"=",1,null,null,null,null,"Stück/Stoß",null,null,null,null,null,null,null,null,null,null,null,null,"5. Gebrauchstauglichkeitsnachweis",null,null,null,null,null,null,null,null,null,null,null,null,null,null,null,null,null,null,null,null,null,null,null,null,null,null,null,null,null,null,null,null,null,null,null,null,null,null,"Schwelle/Rähm zu Wandelement",null,null,null,null,null,null,null,null,{"$f":"DT43","v":0.48527397260273986},{"$f":"CR30","v":0.48527397260273986}]
[null,null,null,null,null,null,null,"qd","=","1,35 * gk + 1,5 * pk",null,null,null,null,null,"=",{"$f":"1.35*Q42+1.5*Q43","v":1.1441250000000001},null,null,"kN/m",null,null,null,null,null,null,null,null,null,null,null,null,null,null,null,null,null,null,null,"Schnittigkeit der Klammerverbindung ",null,null,null,null,null,null,null,null,null,null,null,null,null,null,null,null,null,null,null,null,null,null,null,null,null,null,null,null,null,null,null,null,null,null,null,null,null,null,null,null,null,null,null,null,null,null,null,null,null,null,null,null,null,null,null,null,null,null,null,null,null,null,null,null,null,null,null,null,null,null,null,null,null,"Koppelfuge der Wandelemente"]
[null,null,null,null,null,null,null,null,null,null,null,null,null,null,null,null,null,null,null,null,null,null,null,null,null,null,null,null,null,null,null,null,null,null,null,null,null,null,null,"im Bereich des Koppelbretts",null,null,null,null,null,null,null,null,null,null,null,null,null,"nKI",null,"=",null,null,{"$f":"IF(BE43=2,3,1)","v":1},null,null,null,null,null,null,null,null,null,null,null,null,null,null,null,"Der Hauptanteil der Scheibenverformung resultiert aus der Verschiebung in den ",null,null,null,null,null,null,null,null,null,null,null,null,null,null,null,null,null,null,null,null,null,null,null,null,null,null,null,null,null,null,null,null,null,null,null,null,null,null,null,null,"Koppelbrett",null,null,null,null,null,null,{"$f":"DT45","v":4.9510831586303296E-2},{"$f":"CR35","v":4.9510831586303296E-2}]
[null,null,"2. Ermittlung der Schnittgrößen",null,null,null,null,null,null,null,null,null,null,null,null,null,null,null,null,null,null,null,null,null,null,null,null,null,null,null,null,null,null,null,null,null,null,null,null,"effektiver Klammerabstand",null,null,null,null,null,null,null,null,null,null,null,null,null,"eKl,ef",null,"=",null,{"$f":"$BE$41/$BG$45","v":150},null,null,null,"mm",null,null,null,null,null,null,null,null,null,null,null,null,"Koppelfugen und der Schubverzerrung im Element.",null,null,null,null,null,null,null,null,null,null,null,null,null,null,null,null,null,null,null,null,null,null,null,null,null,null,null,null,null,null,null,null,null,null,null,null,null,null,null,null,"Klammern",null,null,null,null,null,null,{"$f":"DT46","v":8.0878995433789971E-2},{"$f":"CR41","v":8.0878995433789971E-2}]
[null,null,"Anzahl der Elemente",null,null,null,null,null,null,null,null,null,null,null,null,null,null,null,null,"nElemente",null,null,"=","bs/bElement",null,null,null,null,null,"=",{"$f":"ROUND(bsholz*1000/Y24,0)","v":8},null,null,"Stück",null,null,null,null,null,null,null,null,null,null,null,null,null,null,null,null,null,null,null,null,null,null,null,null,null,null,null,null,null,null,null,null,null,null,null,null,null,null,null,null,null,null,null,null,null,null,null,null,null,null,null,null,null,null,null,null,null,null,null,null,null,null,null,null,null,null,null,null,null,null,null,null,null,null,null,null,"GZG"]
[null,null,"Druckzone",null,null,null,null,null,null,null,null,null,null,null,null,null,null,null,null,"bR",null,null,"=","bElement*nElemente*1/5",null,null,null,null,null,"=",{"$f":"Y24*AE47/5000","v":1},null,null,"m",null,null,null,null,"4. Tragfähigkeitsnachweis",null,null,null,null,null,null,null,null,null,null,null,null,null,null,null,null,null,null,null,null,null,null,null,null,null,null,null,null,null,null,null,null,null,null,null,null,null,null,null,null,null,null,null,null,null,null,null,null,null,null,null,null,null,null,null,null,null,null,null,null,null,null,null,null,null,null,null,null,null,null,null,null,"Nachweis der Verformungen",null,null,null,null,null,null,null,null,null,null,{"$f":"DT48","v":0.1581491801804133},{"$f":"EF30","v":0.1581491801804133}]
[null,null,"Mittlere Breite ",null,null,null,null,null,null,null,null,null,null,null,null,null,null,null,null,"bM",null,null,"=","bs-(2*bR/2)",null,null,null,null,null,"=",{"$f":"bsholz-(2*AE48/2)","v":3.8},null,null,"m",null,null,null,null,"Nachweis der Wandelemente"]
[null,null,null,null,null,null,null,null,null,null,null,null,null,null,null,null,null,null,null,null,null,null,null,null,null,null,null,null,null,null,null,null,null,null,null,null,null,null,"Die Kenndaten der Lignotrend-Elemente finden Sie in der jeweiligen "]
[null,null,"Schubfluss",null,null,null,null,null,null,null,null,null,null,null,null,null,null,null,null,"td,Wand",null,null,"=","Hd,ges/bS",null,null,null,null,null,"=",{"$f":"Q40/bsholz","v":2.7250000000000005},null,null,"kN/m",null,null,null,null,"technischen Dokumentation auf der letzten Seite."]
[null,null,"Faktor zur Berücksichtigung der Scheibengeometrie",null,null,null,null,null,null,null,null,null,null,null,null,null,null,null,null,"FG",null,null,"=","wenn(bs>hs/2; 0,75; 1)",null,null,null,null,null,"=",{"$f":"IF(bsholz>Q21/2,0.75,1)","v":0.75},null,null,"-"]
[null,null,"Bemessungsdruckkraft",null,null,null,null,null,null,null,null,null,null,null,null,null,null,null,null,"Fc,d",null,null,"=","FG*Hd,ges*hs/bM + qd*bR",null,null,null,null,null,"=",{"$f":"((AE52*Q40*Q21)/AE49)+(Q44*AE48)","v":9.405177631578951},null,null,"kN",null,null,null,null,null,null,null,null,null,null,null,null,null,null,null,null,null,null,null,"VR,k,y ",null,"=",{"$f":"_xlfn.XLOOKUP(Q24,'Daten Holz'!A3:A5,'Daten Holz'!C3:C5)","v":25},null,null,null,null,"kN/Element"]
[null,null,"charakt. Zugkraft",null,null,null,null,null,null,null,null,null,null,null,null,null,null,null,null,"Ft,k",null,null,"=","Hw,k,ges*hs/bM",null,null,null,null,null,"=",{"$f":"Q38*Q21/AE49","v":7.3431578947368434},null,null,"kN",null,null,null,null,null,null,null,null,null,null,null,null,null,null,null,null,null,null,null,"VR,d,y",null,"=",{"$f":"Q35*BE53/Q33","v":19.23076923076923},null,null,null,null,"kN/Element"]
[null,null,"Bemessungszugkraft",null,null,null,null,null,null,null,null,null,null,null,null,null,null,null,null,"Ft,d",null,null,"=","Hd,ges*hs/bM",null,null,null,null,null,"=",{"$f":"Q40*Q21/AE49","v":11.014736842105266},null,null,"kN",null,null,null,null,null,null,null,null,null,null,null,null,null,null,null,null,null,null,null,"GAef ",null,"=",{"$f":"_xlfn.XLOOKUP(Q24,'Daten Holz'!A3:A5,'Daten Holz'!D3:D5)","v":7605},null,null,null,null,"kN/Element"]
[null,null,"anzusetzende Auflast auf den Scheibenrand zur Lagesicherung",null,null,null,null,null,null,null,null,null,null,null,null,null,null,null,null,"Fv,d,Aufl",null,null,"=","уG,stab*(gk*bs/2)",null,null,null,null,null,"=",{"$f":"Q34*(Q42*bsholz/2)","v":1.8305999999999998},null,null,"kN",null,null,null,null,null,null,null,null,null,null,null,null,null,null,null,null,null,null,null,"NR,d",null,"=",{"$f":"_xlfn.XLOOKUP(Q24,'Daten Holz'!A3:A5,'Daten Holz'!G3:G5)*kmodholz/ymholzbem","v":131.02307692307693},null,null,null,null,"kN/m"]
[null,null,"zu verankernde Zuglast",null,null,null,null,null,null,null,null,null,null,null,null,null,null,null,null,"Ft,d,res",null,null,"=","Ft,d-Fv,d,Aufl.",null,null,null,null,null,"=",{"$f":"AE55-AE56","v":9.184136842105266},null,null,"kN",null,null,null,null,null,null,null,null,null,null,null,null,null,null,"Rd,Randrippe",null,null,"="," NR,d *bR",null,null,"=",{"$f":"BE56*AE48","v":131.02307692307693},null,null,null,null,"kN"]

{"sheet":"Daten Holz","index":2,"n_rows":57,"n_cols":8,"rows_kept":57,"cut":false,"hidden":true,"merged":[[27,4,27,6],[27,8,27,9],[52,4,52,6]]}
["Elemente"]
[null,"Stärke [mm]","VR,k,y [kN]","GAef [kN]","Iz [cm4]","MR,k,z [kNm]","NR,k,SP[kN/m]"]
["Uni Q3-110",110,25,7605,112.1,57.4,170.33]
["Uni Q3-123",123,33.1,9686,107.2,54.9,157.69]
["Uni Q3/HL-110",110,25,7492,107.4,60.7,166.61]
[]
[]
[]
["Schwelle"]
["GL24h"]
["Ligno-Schwelle"]
["Buche GL 70"]
["C24"]
["SteicoLVL"]
[]
["Koppelbrett"]
[null,"fv,k [N/mm²]","pk,1 [kg/m³]","pmean [kg/m³]"]
["Nadelholz C24",2,350,420]
["Sperrholz",3,550,640]
["DreiS.- Platte",2.7,430,505]
[]
[]
["Zugverankerung",null,"Holz-Holz"]
[]
["Simpson Strong Tie"]
["Würth"]
[]
[null,null,null,null,"Holz"]
["Hersteller",null,"Typ","Unterlegscheibe","Anzahl Nägel","Ankernagel LBA","R1,k,timber","R1,d,timber"]
["Würth",null,"Typ V 65x135x90","-",9,"4x40 + ASSY Schraube 5x30 \nTable A5    \n\nETA 14/0274",21.2,{"$f":"G30*kmod/ymholz","v":16.307692307692307}]
["Simpson Strong Tie","Windrispen","BAN2025xx","-",8,"CNA 4x60",{"$f":"MIN(2.36*E31,11.9)","v":11.9},{"$f":"G31/1.3","v":9.1538461538461533}]
[null,null,"BAN2040xx","-",8,"CNA 4x60",{"$f":"MIN(17.8,E32*2.36)","v":17.8},{"$f":"G32/1.3","v":13.692307692307692}]
[null,null,"BAN208025 ","-",16,"CNA 4x60",{"$f":"MIN(35.6,E33*2.36)","v":35.6},{"$f":"G33/1.3","v":27.384615384615383}]
[]
[]
[]
[]
[]
[]
[]
[]
[]
[]
[]
[]
[]
[]
["Schubsicherung",null,"Holz-Holz"]
["Rothoblaas"]
["Simpson Strong Tie"]
[]
[]
[null,null,null,null,"Holz"]
["Hersteller",null,"Typ","Anzahl Nägel Wandschenkel","Ankernagel LBA","R1,k,timber","R1,d,timber"]
["Simpson Strong Tie",null,"AE 76-R","voll ausgenagelt","CNA4x60",{"$f":"15.6/2","v":7.8},{"$f":"F55*kmod/ymholz","v":6}]
["Simpson Strong Tie",null,"AE 116","voll ausgenagelt","CNA4x60",{"$f":"23.2/2","v":11.6},{"$f":"F56*kmod/ymholz","v":8.9230769230769234}]
["Rothoblaas",null,"Titan F TCF200","voll ausgenagelt","CNA4x60",35.5,{"$f":"F57*kmod/ymholz","v":27.307692307692307}]

{"sheet":"Wandanschluss Betondecke","index":3,"n_rows":57,"n_cols":142,"rows_kept":57,"cut":false,"hidden":true,"merged":[[38,16,38,18],[39,16,39,18],[41,16,41,18],[42,16,42,18],[43,16,43,18],[46,30,46,32],[26,16,26,18],[27,16,27,18],[28,16,28,18],[31,16,31,18],[18,16,18,18],[19,16,19,18],[22,8,22,10],[22,12,22,14],[22,16,22,19],[0,0,1,18],[0,19,0,36],[1,19,1,36],[2,0,2,12],[2,23,2,36],[3,23,3,36],[25,16,25,20],[61,69,61,73],[55,53,55,57],[13,53,13,58],[15,53,15,58],[32,16,32,18],[35,16,35,18],[54,30,54,32],[55,30,55,32],[56,30,56,32],[47,30,47,32],[48,30,48,32],[50,30,50,32],[51,30,51,32],[52,30,52,32],[53,30,53,32],[53,53,53,57],[54,53,54,57],[35,53,35,57],[36,53,36,57],[37,53,37,57],[34,16,34,18],[33,16,33,18],[27,53,27,56],[33,53,33,57],[30,129,30,136],[56,53,56,57],[10,97,10,101],[17,97,17,101],[18,97,18,101],[12,52,12,59],[0,37,1,55],[0,56,0,73],[1,56,1,73],[2,37,2,49],[2,60,2,73],[3,60,3,73],[51,97,51,101],[39,97,39,101],[43,97,43,101],[44,97,44,101],[45,97,45,101],[49,97,49,101],[31,97,31,101],[32,97,32,101],[33,97,33,101],[37,97,37,101],[19,97,19,101],[23,97,23,101],[55,126,55,128],[42,53,42,57],[45,53,45,57],[52,53,52,57],[24,53,24,58],[25,53,25,58],[26,53,26,58],[30,53,30,57],[31,53,31,57],[32,53,32,57],[38,53,38,57],[40,53,40,57],[41,54,41,57],[46,126,46,128],[48,126,48,127],[49,126,49,127],[47,126,47,128],[50,126,50,128],[50,97,50,101],[52,126,52,128],[53,126,53,128],[38,97,38,101],[29,97,29,101],[30,97,30,101],[25,97,25,101],[27,97,27,101],[28,97,28,101],[14,54,14,57],[21,51,21,59],[22,53,22,58],[23,53,23,58],[23,59,23,64],[17,55,17,56],[24,97,24,101],[20,51,20,59],[0,130,0,147],[1,130,1,147],[2,111,2,128],[2,134,2,147],[3,134,3,147],[2,74,2,91],[43,126,43,128],[44,126,44,128],[32,129,32,136],[32,138,32,140],[33,138,33,140],[34,129,34,136],[34,138,34,140],[35,129,35,136],[35,138,35,140],[37,138,37,140],[19,129,19,131],[20,129,20,131],[21,129,21,131],[22,129,22,131],[27,129,27,131],[28,129,28,131],[30,138,30,140],[31,138,31,140],[16,53,16,58],[9,97,9,101],[0,74,1,92],[2,97,2,110],[3,97,3,110],[0,93,0,110],[1,93,1,110],[0,111,1,129],[11,52,11,59]]}
["Statik Wandanschluss Beton",null,null,null,null,null,null,null,null,null,null,null,null,null,null,null,null,null,null,{"$f":"TODAY()","v":"2022-04-23"},null,null,null,null,null,null,null,null,null,null,null,null,null,null,null,null,null,"Statik Wandanschluss Beton",null,null,null,null,null,null,null,null,null,null,null,null,null,null,null,null,null,null,{"$f":"TODAY()","v":"2022-04-23"},null,null,null,null,null,null,null,null,null,null,null,null,null,null,null,null,null,"Statik Wandanschluss Beton",null,null,null,null,null,null,null,null,null,null,null,null,null,null,null,null,null,null,{"$f":"TODAY()","v":"2022-04-23"},null,null,null,null,null,null,null,null,null,null,null,null,null,null,null,null,null,"Statik Wandanschluss Beton",null,null,null,null,null,null,null,null,null,null,null,null,null,null,null,null,null,null,{"$f":"TODAY()","v":"2022-04-23"}]
[null,null,null,null,null,null,null,null,null,null,null,null,null,null,null,null,null,null,null,"Seite 1/4",null,null,null,null,null,null,null,null,null,null,null,null,null,null,null,null,null,null,null,null,null,null,null,null,null,null,null,null,null,null,null,null,null,null,null,null,"Seite 2/4",null,null,null,null,null,null,null,null,null,null,null,null,null,null,null,null,null,null,null,null,null,null,null,null,null,null,null,null,null,null,null,null,null,null,null,null,"Seite 3/4",null,null,null,null,null,null,null,null,null,null,null,null,null,null,null,null,null,null,null,null,null,null,null,null,null,null,null,null,null,null,null,null,null,null,null,null,"Seite 4/4"]
[null,null,null,null,null,null,null,null,null,null,null,null,null,null,null,null,null,null,null,"Bauvorhaben:",null,null,null,"Beispielprojekt ",null,null,null,null,null,null,null,null,null,null,null,null,null,null,null,null,null,null,null,null,null,null,null,null,null,null,null,null,null,null,null,null,"Bauvorhaben:",null,null,null,{"$f":"X3","v":"Beispielprojekt "},null,null,null,null,null,null,null,null,null,null,null,null,null,null,null,null,null,null,null,null,null,null,null,null,null,null,null,null,null,null,null,null,"Bauvorhaben:",null,null,null,{"$f":"BI3","v":"Beispielprojekt "},null,null,null,null,null,null,null,null,null,null,null,null,null,null,null,null,null,null,null,null,null,null,null,null,null,null,null,null,null,null,null,null,"Bauvorhaben:",null,null,null,{"$f":"CT3","v":"Beispielprojekt "}]
[null,null,null,null,null,null,null,null,null,null,null,null,null,null,null,null,null,null,null,"Position:",null,null,null,"Beispiel",null,null,null,null,null,null,null,null,null,null,null,null,null,null,null,null,null,null,null,null,null,null,null,null,null,null,null,null,null,null,null,null,"Position:",null,null,null,{"$f":"X4","v":"Beispiel"},null,null,null,null,null,null,null,null,null,null,null,null,null,null,null,null,null,null,null,null,null,null,null,null,null,null,null,null,null,null,null,null,"Position:",null,null,null,{"$f":"BI4","v":"Beispiel"},null,null,null,null,null,null,null,null,null,null,null,null,null,null,null,null,null,null,null,null,null,null,null,null,null,null,null,null,null,null,null,null,"Position:",null,null,null,{"$f":"CT4","v":"Beispiel"}]
[]
["Landstraße 25, D - 79809 Weilheim - Bannholz",null,null,null,null,null,null,null,null,null,null,null,null,null,null,null,null,null,null,null,null,null,null,null,null,null,null,null,null,null,null,null,null,null,null,null,null,"Landstraße 25, D - 79809 Weilheim - Bannholz",null,null,null,null,null,null,null,null,null,null,null,null,null,null,null,null,null,null,null,null,null,null,null,null,null,null,null,null,null,null,null,null,null,null,null,null,"Landstraße 25, D - 79809 Weilheim - Bannholz",null,null,null,null,null,null,null,null,null,null,null,null,null,null,null,null,null,null,null,null,null,null,null,null,null,null,null,null,null,null,null,null,null,null,null,null,"Landstraße 25, D - 79809 Weilheim - Bannholz"]
[]
[null,null,"Berechnung Wandanschluss Beton (Oktober 2021)",null,null,null,null,null,null,null,null,null,null,null,null,null,null,null,null,null,null,null,null,null,null,null,null,null,null,null,null,null,null,null,null,null,null,null,null,{"$f":"C8","v":"Berechnung Wandanschluss Beton (Oktober 2021)"},null,null,null,null,null,null,null,null,null,null,null,null,null,null,null,null,null,null,null,null,null,null,null,null,null,null,null,null,null,null,null,null,null,null,null,null,{"$f":"C8","v":"Berechnung Wandanschluss Beton (Oktober 2021)"},null,null,null,null,null,null,null,null,null,null,null,null,null,null,null,null,null,null,null,null,null,null,null,null,null,null,null,null,null,null,null,null,null,null,null,null,{"$f":"C8","v":"Berechnung Wandanschluss Beton (Oktober 2021)"}]
[]
[null,null,null,null,null,null,null,null,null,null,null,null,null,null,null,null,null,null,null,null,null,null,null,null,null,null,null,null,null,null,null,null,null,null,null,null,null,null,null,"3. Verbindungsmittel",null,null,null,null,null,null,"(alle Tragfähigkeitsnachweise für Beton C20/25)",null,null,null,null,null,null,null,null,null,null,null,null,null,null,null,null,null,null,null,null,null,null,null,null,null,null,null,null,null,"Nachweis der Quertragfähigkeit",null,null,null,null,null,null,null,null,null,"ηV,1","=","td,Wand/(VR,d,y /(bElement/1000))",null,null,null,null,null,null,null,"=",{"$f":"AE51/(BB54/(Q23/1000))","v":5.4405000000000009E-2},null,null,null,null,null,null,null,null,null,null,null,null,null,null,null,"5. Gebrauchstauglichkeitsnachweis"]
[null,null,null,null,null,null,null,null,null,null,null,null,null,null,null,null,null,null,null,null,null,null,null,null,null,null,null,null,null,null,null,null,null,null,null,null,null,null,null,"Zugverankerung der abghebenden Kräfte",null,null,null,null,null,null,null,null,null,null,null,null,null,null,null,null,null,null,null,null,null,null,null,null,null,null,null,null,null,null,null,null,null,null,null,null,"Nachweis der Tragfähigkeit auf Druck",null,null,null,null,null,null,null,null,null,null,null,null,"ηDruck",null,"=","Fc,d/Rd,Randrippe",null,null,null,"=",{"$f":"AE53/BB57","v":0.14617906416955323},null,null,null,null,null,null,null,null,null,null,null,null,null,null,null,"Der Hauptanteil der Scheibenverformung resultiert "]
[null,null,null,null,null,null,null,null,null,null,null,null,null,null,null,null,null,null,null,null,null,null,null,null,null,null,null,null,null,null,null,null,null,null,null,null,null,null,null,"Hersteller Zuganker ",null,null,null,null,null,null,null,null,null,null,null,null,"Simpson Strong Tie",null,null,null,null,null,null,null,null,null,null,null,null,null,null,null,null,null,null,null,null,null,null,null,null,null,null,null,null,null,null,null,null,null,null,null,null,null,null,null,null,null,null,null,null,null,null,null,null,null,null,null,null,null,null,null,null,null,null,null,null,"aus der Verschiebung in den Koppelfugen"]
[null,null,null,null,null,null,null,null,null,null,null,null,null,null,null,null,null,null,null,null,null,null,null,null,null,null,null,null,null,null,null,null,null,null,null,null,null,null,null,"Typ",null,null,null,null,null,null,null,null,null,null,null,null,"HTT4 + Hilti Anker",null,null,null,null,null,null,null,null,null,null,null,null,null,null,null,null,null,null,null,null,null,null,null,null,null,null,null,null,null,null,null,null,null,null,null,null,null,null,null,null,null,null,null,null,null,null,null,null,null,null,null,null,null,null,null,null,null,null,null,null,"und der Schubverzerrung im Element."]
[null,null,null,null,null,null,null,null,null,null,null,null,null,null,null,null,null,null,null,null,null,null,null,null,null,null,null,null,null,null,null,null,null,null,null,null,null,null,null,"Unterlegsscheibe",null,null,null,null,null,null,null,null,null,null,null,null,null,{"$f":"_xlfn.XLOOKUP(BA13,'Daten Beton'!C23:C40,'Daten Beton'!D23:D40)","v":"US50/50/8"}]
[null,null,null,null,null,null,null,null,null,null,null,null,null,null,null,null,null,null,null,null,null,null,null,null,null,null,null,null,null,null,null,null,null,null,null,null,null,null,null,"Betonanker",null,null,null,null,null,null,null,null,null,null,null,null,null,null,{"$f":"_xlfn.XLOOKUP(BA13,'Daten Beton'!C23:C40,'Daten Beton'!L23:L40)","v":"M16*135"},null,null,null,{"$f":"_xlfn.XLOOKUP(BA13,'Daten Beton'!C23:C40,'Daten Beton'!M23:M40)","v":"Hilti HST3"}]
[null,null,null,null,null,null,null,null,null,null,null,null,null,null,null,null,null,null,null,null,null,null,null,null,null,null,null,null,null,null,null,null,null,null,null,null,null,null,null,"Nägel Typ ",null,null,null,null,null,null,null,null,null,null,null,null,null,{"$f":"_xlfn.XLOOKUP(BA13,'Daten Beton'!C23:C40,'Daten Beton'!F23:F40)","v":"CNA 4x60"},null,null,null,null,null,null,null,null,null,null,null,null,null,null,null,null,null,null,null,null,null,null,"Nachweis der Anschlüsse"]
[null,null,null,null,null,null,null,null,null,null,null,null,null,null,null,null,null,null,null,null,null,null,null,null,null,null,null,null,null,null,null,null,null,null,null,null,null,null,null,"Anzahl Nägel",null,null,null,null,null,null,null,null,null,"n",null,null,"=",{"$f":"_xlfn.XLOOKUP(BA13,'Daten Beton'!C23:C40,'Daten Beton'!E23:E40)","v":17},null,null,null,null,null,null,null,"(Anordnung/weiterführende Hinweise",null,null,null,null,null,null,null,null,null,null,null,null,null,null,"Nachweis der Zugverankerung"]
[null,null,"Scheibengeometrie",null,null,null,null,null,null,null,null,null,null,null,null,null,null,null,null,null,null,null,null,null,null,null,null,null,null,null,null,null,null,null,null,null,null,null,null,"Tragfähigkeit der Zugverankerung",null,null,null,null,null,null,null,null,null,"Rt,d,Zuganker",null,null,"=",null,null,{"$f":"_xlfn.XLOOKUP(BA13,'Daten Beton'!C23:C40,'Daten Beton'!R23:R40)","v":18},null,null,"kN",null,null,null,null,null,"siehe Herstellerangaben)",null,null,null,null,null,null,null,null,null,null,null,null,null,null,"Anzahl der Zuganker je Wandende",null,null,null,null,null,null,null,null,null,null,null,null,null,null,"nz",null,"=",1,null,null,null,null,"Stück",null,null,null,null,null,null,null,null,null,null,"Steifigkeit der Koppelfuge "]
[null,null,"Scheibenbreite: ",null,null,null,null,null,null,null,null,null,null,"bs",null,"=",4,null,null,"m",null,null,null,null,null,null,null,null,null,null,null,null,null,null,null,null,null,null,null,null,null,null,null,null,null,null,null,null,null,null,null,null,null,null,null,null,null,null,null,null,null,null,null,null,null,null,null,null,null,null,null,null,null,null,null,null,null,null,null,null,null,null,null,null,null,null,null,null,null,null,null,null,"Rt,d,Zuganker",null,null,null,"=",{"$f":"BD18","v":18},null,null,null,null,"kN"]
[null,null,"Scheibenhöhe: ",null,null,null,"Standard 2,480 oder 2,980",null,null,null,null,null,null,"hs",null,"=",2.7,null,null,"m",null,null,null,null,null,null,null,null,null,null,null,null,null,null,null,null,null,null,null,"Schubsicherung der Horizontalkräfte",null,null,null,null,null,null,null,null,null,null,null,null,null,null,null,null,null,null,null,null,null,null,null,null,null,null,null,null,null,null,null,null,null,null,null,null,null,null,null,null,null,null,null,null,null,null,null,"ηZug",null,"=","Ft,d/(Rt,d,Zuganker*nz)",null,null,null,null,null,"=",{"$f":"AE55/(BD18*CT18)","v":0.30904615384615391},null,null,null,null,null,null,null,null,null,null,null,null,null,null,null,"Rohdichte Koppelbrett",null,null,null,null,null,null,null,null,null,null,null,null,"ρko","=","=",{"$f":"_xlfn.XLOOKUP(BB36,'Daten Beton'!A11:A13,'Daten Beton'!D11:D13)","v":420},null,null,"kg/m³"]
[null,null,null,null,null,null,null,null,null,null,null,null,null,null,null,null,null,null,null,null,null,null,null,null,null,null,null,null,null,null,null,null,null,null,null,null,null,null,null,"Hersteller Schubanker ",null,null,null,null,null,null,null,null,null,null,null,"Simpson Strong Tie",null,null,null,null,null,null,null,null,null,null,null,null,null,null,null,null,null,null,null,null,null,null,null,null,null,null,null,null,null,null,null,null,null,null,null,null,null,null,null,null,null,null,null,null,null,null,null,null,null,null,null,null,null,null,null,null,null,null,null,null,null,"Rohdichte Element",null,null,null,null,null,null,null,null,null,null,null,null,"ρEl","=","=",420,null,null,"kg/m³"]
[null,null,"Lignotrend Element",null,null,null,null,null,null,"Element",null,null,null,"Höhe [mm]",null,null,null,null,"Elementbreite [mm]",null,null,null,null,null,null,null,null,null,null,null,null,null,null,null,null,null,null,null,null,"Typ",null,null,null,null,null,null,null,null,null,null,null,"AE 76-R (Beton)",null,null,null,null,null,null,null,null,{"$f":"AZ22","v":"AE 76-R (Beton)"},null,null,null,null,null,null,null,null,null,null,null,null,null,null,null,"Nachweis der Schubsicherung",null,null,null,null,null,null,null,null,null,null,null,null,null,null,null,null,null,null,null,null,null,null,null,null,null,null,null,null,null,null,null,null,null,null,null,null,"gemittelte Rohdichte",null,null,null,null,null,null,null,null,null,null,null,null,"ρm","=","=",{"$f":"(DZ21+DZ20)/2","v":420},null,null,"kg/m³"]
[null,null,null,null,null,null,null,null,"Uni Q3-110",null,null,null,{"$f":"_xlfn.XLOOKUP(I23,'Daten Beton'!A3:A5,'Daten Beton'!B3:B5)","v":110},null,null,null,625,null,null,null,null,null,null,null,null,null,null,null,null,null,null,null,null,null,null,null,null,null,null,"Unterlegsscheibe",null,null,null,null,null,null,null,null,null,null,null,null,null,{"$f":"_xlfn.XLOOKUP(AZ22,'Daten Beton'!C49:C56,'Daten Beton'!D49:D56)","v":"U40/50/10"},null,null,null,null,null,null,null,null,null,null,null,null,null,null,null,null,null,null,null,null,null,null,null,"Verankerung im Holz bzw. Stahltragfähigkeit:",null,null,null,null,null,null,null,null,null,null,null,null,null,null,null,null,null,null,null,null,null,null,null,null,null,null,null,null,null,null,null,null,null,null,null,"Klammerdurchmesser",null,null,null,null,null,null,null,null,null,null,null,"dKlammer",null,"=","=",1.83,null,null,"mm"]
[null,null,null,null,null,null,null,null,null,null,null,null,null,{"$f":"M23","v":110},null,null,null,null,null,null,null,null,null,null,null,null,null,null,null,null,null,null,null,null,null,null,null,null,null,"Betonanker",null,null,null,null,null,null,null,null,null,null,null,null,null,{"$f":"_xlfn.XLOOKUP(AZ22,'Daten Beton'!C49:C56,'Daten Beton'!L49:L56)","v":"M12*103"},null,null,null,null,null,{"$f":"_xlfn.XLOOKUP(AZ22,'Daten Beton'!C49:C56,'Daten Beton'!M49:M56)","v":"BOAX-II M12-103/5"},null,null,null,null,null,null,null,null,null,null,null,null,null,null,null,null,null,null,null,"Anzahl der Winkel je Wand",null,null,null,null,null,null,null,null,null,null,null,null,null,null,"ns",null,"=",{"$f":"BB28","v":2},null,null,null,null,"Stück"]
[null,null,"Schwelle:",null,null,null,null,null,null,null,null,null,null,null,null,null,null,null,null,null,null,null,null,null,null,null,null,null,null,null,null,null,null,null,null,null,null,null,null,"Nägel Typ ",null,null,null,null,null,null,null,null,null,null,null,null,null,{"$f":"_xlfn.XLOOKUP(AZ22,'Daten Beton'!C49:C56,'Daten Beton'!F49:F56)","v":"CNA 4x60"},null,null,null,null,null,null,null,null,null,null,null,null,null,null,null,null,null,null,null,null,null,null,null,null,null,null,null,null,null,null,null,null,null,null,null,null,null,null,"Rv,d,Schubanker",null,null,null,"=",{"$f":"BB27","v":4.3076923076923075},null,null,null,null,"kN",null,null,null,null,null,null,null,null,null,null,"Verschiebungsmodul der Klammer nach [DIN EN 1995-1-1] 7.1 "]
[null,null,"Schwellenmaterial",null,null,null,null,null,null,null,null,null,null,null,null,null,"Ligno-Schwelle",null,null,null,null,null,null,null,null,null,null,null,null,null,null,null,null,null,null,null,null,null,null,"Anzahl Nägel",null,null,null,null,null,null,null,null,null,"n",null,null,"=",{"$f":"_xlfn.XLOOKUP(AZ22,'Daten Beton'!C49:C56,'Daten Beton'!E49:E56)","v":9},null,null,null,null,null,null,null,"(Anordnung/weiterführende Hinweise",null,null,null,null,null,null,null,null,null,null,null,null,null,null,null,null,null,null,null,null,null,null,null,"ηSchub,1",null,null,"=","Hd,ges/(ns*Rt,d,Schubanker)",null,null,null,null,null,null,"=",{"$f":"Q40/(CT25*CT24)","v":0.77721428571428586}]
[null,null,"Standardschwellenhöhen 120 oder 240mm",null,null,null,null,null,null,null,null,null,null,null,null,null,null,null,null,null,null,null,null,null,null,null,null,null,null,null,null,null,null,null,null,null,null,null,null,"Tragfähigkeit der Schubverankerung",null,null,null,null,null,null,null,null,null,"Rv,d,Zuganker",null,null,"=",{"$f":"_xlfn.XLOOKUP(AZ22,'Daten Beton'!C49:C56,'Daten Beton'!O49:O56)","v":4.3076923076923075},null,null,null,null,null,null,null,null,null,null,"siehe Herstellerangaben)",null,null,null,null,null,null,null,null,null,null,null,null,null,null,null,null,null,null,null,null,null,null,null,null,null,null,null,null,null,null,null,null,null,null,null,null,null,null,null,null,null,null,null,null,null,null,null,null,"Der Verschiebungsmodul Kser für die Klammer gilt je Stift und kann daher mit dem Faktor 2 multipliziert werden."]
[null,null,"Schwellenhöhe oben",null,null,null,null,null,null,null,null,null,null,null,null,null,120,null,null,"mm",null,null,null,null,null,null,null,null,null,null,null,null,null,null,null,null,null,null,null,"Anzahl der Winkel über Wandlänge",null,null,null,null,null,null,null,null,null,"ns",null,null,"=",2,null,null,null,"Stück",null,null,null,null,null,null,null,null,null,null,null,null,null,null,null,null,null,null,null,"Nachweis der Betondübel:",null,null,null,null,null,null,null,null,null,null,null,null,null,null,null,null,null,null,null,null,null,null,null,null,null,null,null,null,null,null,null,null,null,null,null,null,null,null,null,"Kser",null,"=","(ρm1,5/80 * dKlammer0,8) * 2",null,null,null,null,null,null,"=","=",{"$f":"(DZ22^1.5 / 80 * DZ23 ^ 0.8) * 2","v":348.9593313344912},null,null,"N/mm"]
[null,null,"Schwellenhöhe unten",null,null,null,null,null,null,null,null,null,null,null,null,null,120,null,null,"mm",null,null,null,null,null,null,null,null,null,null,null,null,null,null,null,null,null,null,null,null,null,null,null,null,null,null,null,null,null,null,null,null,null,null,null,null,null,null,null,null,null,null,null,null,null,null,null,null,null,null,null,null,null,null,null,null,null,null,null,null,null,null,null,null,null,null,null,null,null,null,null,null,null,"e",null,null,"=",{"$f":"IF(OR('Daten Beton'!C66=BI22,'Daten Beton'!C68=BI22),'Daten Beton'!D66,N24/2+_xlfn.XLOOKUP(BI22,'Daten Beton'!C61:C68,'Daten Beton'!D61:D68))","v":79},null,null,null,null,"mm",null,null,null,null,null,null,null,null,null,null,null,null,null,null,"KFuge",null,"=",null,"(Kser  / eKl,eff * hS ) / 2",null,null,null,null,null,"=","=",{"$f":"(DZ28*1000  / CT50* Q20 ) / 2","v":9421.9019460312629},null,null,"N/mm"]
[null,null,null,null,null,null,null,null,null,null,null,null,null,null,null,null,null,null,null,null,null,null,null,null,null,null,null,null,null,null,null,null,null,null,null,null,null,null,null,"Koppelfugen Schwelle/Rähm zu Wandelement",null,null,null,null,null,null,null,null,null,null,null,null,null,null,null,null,null,null,null,null,null,null,null,null,null,null,null,null,null,null,null,null,null,null,null,null,null,null,null,null,null,null,null,null,null,null,null,null,null,null,null,null,"Dübelabstand",null,null,null,"=",{"$f":"_xlfn.XLOOKUP(BI22,'Daten Beton'!C61:C68,'Daten Beton'!E61:E68)","v":38},null,null,null,null,"mm"]
[null,null,"1. Eingabe der Belastungen",null,null,null,null,null,null,null,null,null,null,null,null,null,null,null,null,null,null,null,null,null,null,null,null,null,null,null,null,null,null,null,null,null,null,null,null,"Klammern",null,null,null,null,null,null,null,null,null,null,null,"Klammertyp",":","1,83 x 63",null,null,null,null,"mm",null,null,null,null,null,null,null,null,null,null,null,null,null,null,null,null,null,null,null,null,null,null,null,null,null,null,null,"V2","=","(Hd,ges/ns) * (e/Dübelabstand)",null,null,null,null,null,null,null,"=",{"$f":"(Q40/BB28)*(CT29/CT30)","v":6.9603157894736851},null,null,null,null,"kN",null,null,null,null,null,null,null,null,null,null,"Anzahl der Koppelfugen",null,null,null,null,null,null,null,null,null,null,"nKoppelf.",null,null,"=",null,"bS / bElement",null,null,null,null,null,null,null,"=",{"$f":"ROUND((bs /(Q23/1000))-1,0)","v":5},null,null,"Stück"]
[null,null,"Teilsicherheitsbeiwerte",null,null,null,null,null,null,null,null,null,null,"уM",null,"=",1.3,null,null,null,null,null,null,null,null,null,null,null,null,null,null,null,null,null,null,null,null,null,null,"Tragfähigkeit pro Klammer",null,null,null,null,null,null,null,null,null,"Rk,Klammer",null,null,"=",0.73,null,null,null,null,"kN",null,null,null,null,null,null,null,null,null,null,null,null,null,null,null,null,null,null,null,null,null,null,null,null,null,null,null,null,null,null,null,null,"Vres=Wurzel((Hd,ges/ns)²+V2²)",null,null,null,null,"=",{"$f":"SQRT((Q40/BB28)^2+CT31^2)","v":7.7236713996127966},null,null,null,null,"kN",null,null,null,null,null,null,null,null,null,null,"Verformung infolge der Koppelfugen",null,null,null,null,null,null,null,null,null,null,"uges,Fuge",null,null,"=","=","Ft,k*(nKoppelf.+1)/KFuge*(hS/bS)",null,null,null,null,null,null,null,"=",{"$f":"AE54*1000 * (EI31 +1) / (DZ29) * (Q20 / bs)","v":1.5941200792531833},null,null,"mm"]
[null,null,null,null,null,null,null,null,null,null,null,null,"уG,stabilisierend",null,null,"=",0.9,null,null,null,null,null,null,null,null,null,null,null,null,null,null,null,null,null,null,null,null,null,null,null,null,null,null,null,null,null,null,null,null,"Rd,Klammer",null,null,"=",{"$f":"Q36*BB32/Q32","v":0.56153846153846154},null,null,null,null,"kN",null,null,null,null,null,null,null,null,null,null,null,null,null,null,null,null,null,null,null,null,null,null,null,null,null,null,null,null,null,null,null,null,null,"Rv,d,Betondübel",null,null,null,"=",{"$f":"_xlfn.XLOOKUP(BI22,'Daten Beton'!C49:C56,'Daten Beton'!N49:N56)","v":18.759999999999998},null,null,null,null,"kN",null,null,null,null,null,null,null,null,null,null,"Schubverzerrung der Elemente",null,null,null,null,null,null,null,null,null,null,"GAef,Scheibe",null,null,"=","=","GAef / bElement * bS",null,null,null,null,null,null,null,"=",{"$f":"BB55/(Q23/1000) * bs","v":48672},null,null,"kN"]
[null,null,null,null,null,null,null,null,null,null,null,null,null,"уq",null,"=",1.5,null,null,null,null,null,"(bei Belastung aus Erdbeben 1,0)",null,null,null,null,null,null,null,null,null,null,null,null,null,null,null,null,"Anzahl Klammern / Meter Schwelle",null,null,null,null,null,null,null,null,null,null,null,"nK","=",10,null,null,null,null,"Stück",null,null,null,null,null,null,null,null,null,null,null,null,null,null,null,null,null,null,null,null,null,null,null,null,null,null,null,null,"ηSchub,2",null,null,"=","Vres/Rv,d,Betondübel",null,null,null,null,"=",{"$f":"CT32/CT33","v":0.41170956287914701},null,null,null,null,null,null,null,null,null,null,null,null,null,null,null,null,null,null,null,null,null,null,null,null,null,null,"uges,Elemente",null,null,"=","=","hS * (  Hw,k,ges * 1) / GAef,Scheibe",null,null,null,null,null,null,null,"=",{"$f":"Q20* 1000*( Q39 * 1) / EI33","v":0.24763313609467458},null,null,"mm"]
[null,null,null,null,null,null,null,null,null,null,null,null,null,"уg",null,"=",1.35,null,null,null,null,null,"(bei Belastung aus Erdbeben 1,0)",null,null,null,null,null,null,null,null,null,null,null,null,null,null,null,null,"Koppelfuge der Wandelemente ",null,null,null,null,null,null,null,null,null,null,null,null,null,null,null,null,null,null,null,null,null,null,null,null,null,null,null,null,null,null,null,null,null,null,null,null,null,null,null,null,null,null,null,null,null,null,null,null,null,null,null,null,null,null,null,null,null,null,null,null,null,null,null,null,null,null,null,null,null,null,null,null,null,"Gesamtverformung der Scheibe",null,null,null,null,null,null,null,null,null,null,"uges",null,null,"=","=","uges,Fuge + uges,Elemente",null,null,null,null,null,null,null,"=",{"$f":"EI34+EI32","v":1.841753215347858},null,null,"mm"]
[null,null,"Modifikationsbeiwert",null,null,null,null,null,null,null,null,null,null,"kmod",null,"=",1,null,null,null,null,null,"(bei Belastung aus Erdbeben 1,1)",null,null,null,null,null,null,null,null,null,null,null,null,null,null,null,null,"Koppelbrett",null,null,null,null,null,null,null,null,null,null,null,"Material",":","Nadelholz C24",null,null,null,null,null,null,null,null,null,null,null,null,null,null,null,null,null,null,null,null,null,null,null,null,null,null,null,null,null,null,null,null,null,null,null,null,null,null,null,null,null,null,null,null,null,null,null,null,null,null,null,null,null,null,null,null,null,null,null,"maximal zulässige Verformung",null,null,null,null,null,null,null,null,null,null,"umax",null,null,"=","=","hs/500",null,null,null,null,null,null,null,"=",{"$f":"Q20 / 500 *1000","v":5.4},null,null,"mm"]
[null,null,null,null,null,null,null,null,null,null,null,null,null,null,null,null,null,null,null,null,null,null,null,null,null,null,null,null,null,null,null,null,null,null,null,null,null,null,null,null,"Dicke",null,null,null,null,null,null,null,null,null,"dkop",null,"=",26.5,null,null,null,null,"mm",null,null,null,null,null,null,null,null,null,null,null,null,null,null,null,null,null,"Nachweis der Koppelfugen Schwelle/Rähm zu Wandelement"]
[null,null,"Horizontallasten am Wandkopf infolge Wind/Erdbeben",null,null,null,null,null,null,null,null,null,null,null,null,null,null,null,null,null,null,null,null,null,null,null,null,null,null,null,null,null,null,null,null,null,null,null,null,null,"Schubtragfähigkeit",null,null,null,null,null,null,null,null,null,"fv,d",null,"=",{"$f":"_xlfn.XLOOKUP(BB36,'Daten Beton'!A11:A13,'Daten Beton'!B11:B13)*Q36/Q32","v":1.5384615384615383},null,null,null,null,"N/mm²",null,null,null,null,null,null,null,null,null,null,null,null,null,null,null,null,null,null,null,null,"Anzahl Klammern / Meter Schwelle",null,null,null,null,null,null,null,null,null,null,null,null,null,null,"nK",null,"=",{"$f":"BB34","v":10},null,null,null,null,"Stück",null,null,null,null,null,null,null,null,null,null,"Nachweis der Verformungen",null,null,null,null,null,null,null,null,null,null,null,null,null,null,null,null,null,null,"ηu","=","uges/umax",null,null,"=",{"$f":"EI35/EI36","v":0.3410654102496033}]
[null,null,null,null,null,null,null,null,null,null,null,null,null,"Hw,k,ges",null,"=",4.4640000000000004,null,null,"kN",null,null,null,null,null,null,null,null,null,null,null,null,null,null,null,null,null,null,null,null,"Schubtragfähigkeit bezogen auf dkop",null,null,null,null,null,null,null,null,null,"Rv,d,kop",null,"=",{"$f":"BB38*BB37","v":40.769230769230766},null,null,null,null,"kN/m",null,null,null,null,null,null,null,null,null,null,null,null,null,null,null,null,null,null,null,null,null,null,null,null,null,null,null,null,null,null,null,null,null,null,"Rd,Klammer",null,null,"=",{"$f":"BB33","v":0.56153846153846154},null,null,null,null,"kN"]
[null,null,null,null,null,null,null,null,"Hd,ges",null,"=","уq * Hw,k,ges",null,null,null,"=",{"$f":"Q39*Q34","v":6.6960000000000006},null,null,"kN",null,null,null,null,null,null,null,null,null,null,null,null,null,null,null,null,null,null,null,"Klammern ",null,null,null,null,null,null,null,null,null,null,null,null,null,"Klammertyp und Tragfähigkeit analog zur Koppelfuge Schwelle/Rähm",null,null,null,null,null,null,null,null,null,null,null,null,null,null,null,null,null,null,null,null,null,null,null,null,null,null,null,null,null,null,null,null,"ηSchwelle",null,null,"=","td,Wand/(nk*Rv,d,Klammer)",null,null,null,null,null,"=",{"$f":"AE51/(CT39*CT38)","v":0.29810958904109591}]
[null,null,"Auflast der Wand inklusive Eigengewicht",null,null,null,null,null,null,null,null,null,null,null,null,null,null,null,null,null,null,null,null,null,null,null,null,null,null,null,null,null,null,null,null,null,null,null,null,null,null,null,null,null,null,null,null,null,null,null,"eKL",null,"=",50,null,null,null,null,"mm",null,null,null,null,null,null,null,null,null,null,null,null,null,null,null,null,null,null,null,null,null,null,null,null,null,null,null,null,null,null,null,null,null,null,null,null,null,null,null,null,null,null,null,null,null,null,null,null,null,null,null,null,null,null,"Zusammenfassung der Nachweise"]
[null,null,null,null,null,null,null,null,null,null,null,null,null,"gk",null,"=",7.8,null,null,"kN/m",null,null,null,null,null,null,null,null,null,null,null,null,null,null,null,null,null,null,null,null,null,null,null,null,null,null,null,null,null,"EC  5, Tabelle 8.3",null,null,"ek,min = 10d ","=",{"$f":"10*IF(BB40=\"1,83 x 63mm\",1.83,1.53)","v":15.3},null,null,null,null,null,null,null,null,null,null,null,null,null,null,null,null,null,null,null,null,null,"Nachweis der Koppelfugen der Wandelemente ",null,null,null,null,null,null,null,null,null,null,null,null,null,null,null,null,null,null,null,null,null,null,null,null,null,null,null,null,null,null,null,null,null,null,null,null,"GZT"]
[null,null,null,null,null,null,null,null,null,null,null,null,null,"pk",null,"=",2.04,null,null,"kN/m",null,null,null,null,null,null,null,null,null,null,null,null,null,null,null,null,null,null,null,null,"Anzahl der Koppelbretter je Stoß",null,null,null,null,null,null,null,null,null,"nKo",null,"=",1,null,null,null,null,"Stück",null,null,null,null,null,null,null,null,null,null,null,null,null,null,null,null,null,null,"Koppelbrett:",null,null,null,null,null,null,null,null,null,null,null,null,null,null,null,null,null,null,null,null,null,null,null,null,null,null,null,null,null,null,null,null,null,null,null,null,{"$f":"AN49","v":"Nachweis der Wandelemente"}]
[null,null,null,null,null,null,null,"qd","=","уg * gk +уq * pk",null,null,null,null,null,"=",{"$f":"Q35*Q42+Q34*Q43","v":13.590000000000002},null,null,"kN/m",null,null,null,null,null,null,null,null,null,null,null,null,null,null,null,null,null,null,null,null,"Schnittigkeit der Klammerverbindung ",null,null,null,null,null,null,null,null,null,null,null,null,null,null,null,null,null,null,null,null,null,null,null,null,null,null,null,null,null,null,null,null,null,null,null,null,null,null,null,null,null,null,null,null,null,null,null,null,null,null,null,null,null,"nK",null,"=",1,null,null,null,null,"Stück",null,null,null,null,null,null,null,null,null,null,null,null,null,"Quertragfähigkiet",null,null,null,null,null,null,null,null,{"$f":"DW44","v":5.4405000000000009E-2},{"$f":"CT10","v":5.4405000000000009E-2}]
[null,null,null,null,null,null,null,null,null,null,null,null,null,null,null,null,null,null,null,null,null,null,null,null,null,null,null,null,null,null,null,null,null,null,null,null,null,null,null,null,"im Bereich des Koppelbretts",null,null,null,null,null,null,null,null,null,"nKI",null,"=",null,null,{"$f":"IF(BB43=2,3,1)","v":1},null,null,null,null,null,null,null,null,null,null,null,null,null,null,null,null,null,null,null,null,null,null,null,null,null,null,null,null,null,null,null,null,null,null,null,null,null,"Rv,d,kop",null,null,"=",{"$f":"BB39","v":40.769230769230766},null,null,null,null,"kN/m",null,null,null,null,null,null,null,null,null,null,null,null,null,"Drucktragfähigkeit",null,null,null,null,null,null,null,null,{"$f":"DW45","v":0.14617906416955323},{"$f":"CT11","v":0.14617906416955323}]
[null,null,"2. Ermittlung der Schnittgrößen",null,null,null,null,null,null,null,null,null,null,null,null,null,null,null,null,null,null,null,null,null,null,null,null,null,null,null,null,null,null,null,null,null,null,null,null,null,"effektiver Klammerabstand",null,null,null,null,null,null,null,null,null,"eKl,ef",null,"=",{"$f":"$BB$41/$BD$45","v":50},null,null,null,null,"mm",null,null,null,null,null,null,null,null,null,null,null,null,null,null,null,null,null,null,null,null,null,null,null,null,null,null,null,null,"ηKoppelbrett",null,null,"=","td,Wand/(nk*Rv,d,kop)",null,null,null,null,"=",{"$f":"AE51/(CT45*CT44)","v":4.1060377358490573E-2},null,null,null,null,null,null,null,null,null,null,null,null,null,null,null,null,{"$f":"BY16","v":"Nachweis der Anschlüsse"}]
[null,null,"Anzahl der Elemente",null,null,null,null,null,null,null,null,null,null,null,null,null,null,null,null,"nElemente",null,null,"=","bs/bElement",null,null,null,null,null,"=",{"$f":"ROUND(bs*1000/Q23,0)","v":6},null,null,"Stück",null,null,null,null,null,null,null,null,null,null,null,null,null,null,null,null,null,null,null,null,null,null,null,null,null,null,null,null,null,null,null,null,null,null,null,null,null,null,null,null,null,null,null,null,null,null,null,null,null,null,null,"(für den Nachweis der Schubtragfähigkeit wird auf der sicheren Seite liegend nur ein Koppelbrett berücksichtigt)",null,null,null,null,null,null,null,null,null,null,null,null,null,null,null,null,null,null,null,null,null,null,null,null,null,null,null,null,null,null,"Zugverankerung",null,null,null,null,null,null,null,null,{"$f":"DW47","v":0.30904615384615391},{"$f":"CT20","v":0.30904615384615391}]
[null,null,"Druckzone",null,null,null,null,null,null,null,null,null,null,null,null,null,null,null,null,"bR",null,null,"=","bElement*nElemente*1/5",null,null,null,null,null,"=",{"$f":"Q23*AE47/5000","v":0.75},null,null,"m",null,null,null,null,null,"4. Tragfähigkeitsnachweis",null,null,null,null,null,null,null,null,null,null,null,null,null,null,null,null,null,null,null,null,null,null,null,null,null,null,null,null,null,null,null,null,null,null,null,null,null,"Klammern:",null,null,null,null,null,null,null,null,null,null,null,null,null,null,null,null,null,null,null,null,null,null,null,null,null,null,null,null,null,null,null,null,null,null,null,null,null,null,"Schubsicherung"]
[null,null,"Mittlere Breite ",null,null,null,null,null,null,null,null,null,null,null,null,null,null,null,null,"bM",null,null,"=","bs-(2*bR/2)",null,null,null,null,null,"=",{"$f":"bs-(2*AE48/2)","v":3.25},null,null,"m",null,null,null,null,null,"Nachweis der Wandelemente",null,null,null,null,null,null,null,null,null,null,null,null,null,null,null,null,null,null,null,null,null,null,null,null,null,null,null,null,null,null,null,null,null,null,null,null,null,null,null,"effektiver Klammerabstand",null,null,null,null,null,null,null,null,null,null,null,null,null,null,null,null,null,null,null,null,null,null,null,null,null,null,null,null,null,null,null,null,null,null,null,null,null,null,"Holz-/Stahltragfähigkeit",null,null,null,null,null,null,{"$f":"DW49","v":0.77721428571428586},{"$f":"CT26","v":0.77721428571428586}]
[null,null,null,null,null,null,null,null,null,null,null,null,null,null,null,null,null,null,null,null,null,null,null,null,null,null,null,null,null,null,null,null,null,null,null,null,null,null,null,"Die Kenndaten der Lignotrend-Elemente finden Sie in der jeweiligen ",null,null,null,null,null,null,null,null,null,null,null,null,null,null,null,null,null,null,null,null,null,null,null,null,null,null,null,null,null,null,null,null,null,null,null,null,null,null,null,null,null,null,null,null,null,null,null,null,null,null,null,null,null,null,"eKl,ef",null,"=",{"$f":"BB46","v":50},null,null,null,null,"mm",null,null,null,null,null,null,null,null,null,null,null,null,null,null,null,"Betondübel",null,null,null,null,null,null,{"$f":"DW50","v":0.41170956287914701},{"$f":"CT34","v":0.41170956287914701}]
[null,null,"Schubfluss",null,null,null,null,null,null,null,null,null,null,null,null,null,null,null,null,"td,Wand",null,null,"=","Hd,ges/bS",null,null,null,null,null,"=",{"$f":"Q40/bs","v":1.6740000000000002},null,null,"kN/m",null,null,null,null,null,"technischen Dokumentation auf der letzten Seite.",null,null,null,null,null,null,null,null,null,null,null,null,null,null,null,null,null,null,null,null,null,null,null,null,null,null,null,null,null,null,null,null,null,null,null,null,null,null,null,null,null,null,null,null,null,null,null,null,null,null,null,null,null,"Rv,d,Klammer",null,null,"=",{"$f":"BB33","v":0.56153846153846154},null,null,null,null,"kN",null,null,null,null,null,null,null,null,null,null,null,null,null,"Schwelle/Rähm zu Wandelement",null,null,null,null,null,null,null,null,{"$f":"DW51","v":0.29810958904109591},{"$f":"CT40","v":0.29810958904109591}]
[null,null,"Faktor zur Berücksichtigung der Scheibengeometrie",null,null,null,null,null,null,null,null,null,null,null,null,null,null,null,null,"FG",null,null,"=","wenn(bs>hs/2; 0,75; 1)",null,null,null,null,null,"=",{"$f":"IF(bs>Q20/2,0.75,1)","v":0.75},null,null,"-",null,null,null,null,null,null,null,null,null,null,null,null,null,null,null,null,null,null,null,null,null,null,null,null,null,null,null,null,null,null,null,null,null,null,null,null,null,null,null,null,null,null,null,null,null,null,null,null,null,"ηKlammer",null,null,"=","td,Wand/(Rv,d,Klammer*1000/eKl,ef)",null,null,null,null,null,null,null,null,"=",{"$f":"AE51/(CT51*1000/CT50)","v":0.14905479452054796},null,null,null,null,null,null,null,null,null,null,null,null,null,null,null,null,null,null,"Koppelfuge der Wandelemente"]
[null,null,"Bemessungsdruckkraft",null,null,null,null,null,null,null,null,null,null,null,null,null,null,null,null,"Fc,d",null,null,"=","FG*Hd,ges*hs/bM + qd*bR",null,null,null,null,null,"=",{"$f":"((AE52*Q40*Q20)/AE49)+(Q44*AE48)","v":14.364623076923078},null,null,"kN",null,null,null,null,null,null,null,null,null,null,null,null,null,null,null,null,"VR,k,y ",null,"=",{"$f":"_xlfn.XLOOKUP(I23,'Daten Beton'!A3:A5,'Daten Beton'!C3:C5)","v":25},null,null,null,null,"kN/Element",null,null,null,null,null,null,null,null,null,null,null,null,null,null,null,null,null,null,null,null,null,null,null,null,null,null,null,null,null,null,null,null,null,null,null,null,null,null,null,null,null,null,null,null,null,null,null,null,null,null,null,null,null,null,null,null,null,null,null,"Koppelbrett",null,null,null,null,null,null,{"$f":"DW53","v":4.1060377358490573E-2},{"$f":"CT46","v":4.1060377358490573E-2}]
[null,null,"charakt. Zugkraft",null,null,null,null,null,null,null,null,null,null,null,null,null,null,null,null,"Ft,k",null,null,"=","Hw,k,ges*hs/bM",null,null,null,null,null,"=",{"$f":"Q39*Q20/AE49","v":3.7085538461538468},null,null,"kN",null,null,null,null,null,null,null,null,null,null,null,null,null,null,null,null,"VR,d,y",null,"=",{"$f":"Q36*BB53/Q32","v":19.23076923076923},null,null,null,null,"kN/Element",null,null,null,null,null,null,null,null,null,null,null,null,null,null,null,null,null,null,null,null,null,null,null,null,null,null,null,null,null,null,null,null,null,null,null,null,null,null,null,null,null,null,null,null,null,null,null,null,null,null,null,null,null,null,null,null,null,null,null,"Klammern",null,null,null,null,null,null,{"$f":"DW54","v":0.14905479452054796},{"$f":"CT52","v":0.14905479452054796}]
[null,null,"Bemessungszugkraft",null,null,null,null,null,null,null,null,null,null,null,null,null,null,null,null,"Ft,d",null,null,"=","Hd,ges*hs/bM",null,null,null,null,null,"=",{"$f":"Q40*Q20/AE49","v":5.5628307692307706},null,null,"kN",null,null,null,null,null,null,null,null,null,null,null,null,null,null,null,null,"GAef ",null,"=",{"$f":"_xlfn.XLOOKUP(I23,'Daten Beton'!A3:A5,'Daten Beton'!D3:D5)","v":7605},null,null,null,null,"kN/Element",null,null,null,null,null,null,null,null,null,null,null,null,null,null,null,null,null,null,null,null,null,null,null,null,null,null,null,null,null,null,null,null,null,null,null,null,null,null,null,null,null,null,null,null,null,null,null,null,null,null,null,null,null,null,"GZG"]
[null,null,"anzusetzende Auflast auf den Scheibenrand zur Lagesicherung",null,null,null,null,null,null,null,null,null,null,null,null,null,null,null,null,"Fv,d,Aufl",null,null,"=","уG,stab*(gk*bs/2)",null,null,null,null,null,"=",{"$f":"Q33*(Q42*bs/2)","v":14.04},null,null,"kN",null,null,null,null,null,null,null,null,null,null,null,null,null,null,null,null,"NR,d",null,"=",{"$f":"_xlfn.XLOOKUP(I23,'Daten Beton'!A3:A5,'Daten Beton'!G3:G5)*kmod/ymholz","v":131.02307692307693},null,null,null,null,"kN/m",null,null,null,null,null,null,null,null,null,null,null,null,null,null,null,null,null,null,null,null,null,null,null,null,null,null,null,null,null,null,null,null,null,null,null,null,null,null,null,null,null,null,null,null,null,null,null,null,null,null,null,null,null,null,null,"Nachweis der Verformungen",null,null,null,null,null,null,null,null,null,null,{"$f":"DW56","v":0.3410654102496033},{"$f":"EI38","v":0.3410654102496033}]
[null,null,"zu verankernde Zuglast",null,null,null,null,null,null,null,null,null,null,null,null,null,null,null,null,"Ft,d,res",null,null,"=","Ft,d-Fv,d,Aufl.",null,null,null,null,null,"=",{"$f":"AE55-AE56","v":-8.4771692307692277},null,null,"kN",null,null,null,null,null,null,null,null,null,null,null,"Rd,Randrippe",null,null,"="," NR,d *bR",null,null,"=",{"$f":"BB56*AE48","v":98.267307692307696},null,null,null,null,"kN"]

{"sheet":"Daten Beton","index":4,"n_rows":68,"n_cols":18,"rows_kept":68,"cut":false,"hidden":true,"merged":[[20,4,20,7],[20,8,20,10],[20,11,20,14],[46,4,46,6],[46,8,46,10],[46,11,46,13]]}
["Elemente"]
[null,"Stärke [mm]","VR,k,y [kN]","GAef [kN]","Iz [cm4]","MR,k,z [kNm]","NR,k,SP[kN/m]"]
["Uni Q3-110",110,25,7605,112.1,57.4,170.33]
["Uni Q3-123",123,33.1,9686,107.2,54.9,157.69]
["Uni Q3/HL-110",110,25,7492,107.4,60.7,166.61]
[]
[null,null,null,null,null,null,"(aus Bemessungsprogramm Wand Uni)"]
[]
["Koppelbrett"]
[null,"fv,k [N/mm²]","pk,1 [kg/m³]","pmean [kg/m³]"]
["Nadelholz C24",2,350,420]
["Sperrholz",3,550,640]
["DreiS.- Platte",2.7,430,505]
[]
[]
["Zugverankerung",null,"Holz-Beton"]
["Rothoblaas"]
["Simpson Strong Tie"]
[]
[]
[null,null,null,null,"Holz",null,null,null,"Stahl",null,null,"Beton",null,null,null,null,null,"maßgebend"]
["Hersteller",null,"Typ","Unterlegscheibe","Anzahl Nägel","Ankernagel ","R1,k,timber","R1,d,timber","R1,k,steel","gamma ","R1,d,steel","Ø Anker ","Hersteller + Typ","Rv,d,cracked","Rt,d,cracked","Abminderung Exzentrizität","Rt,d"]
["Rothoblaas",null,"WHT340","-",14,"LBA 4x60",27,18.692307692307693,42,1.25,{"$f":"I23/J23","v":33.6},"M16*160","Rothoblaas EPO-FIX PLUS",null,29.3,1,{"$f":"P23*O23","v":29.3},{"$f":"MIN(Q23,K23,H23)","v":18.692307692307693}]
["Rothoblaas",null,"WHT440","-",20,"LBA 4x60",38.6,26.723076923076924,42,1.25,33.6,"M16*160","Rothoblaas EPO-FIX PLUS",null,29.3,1,{"$f":"P24*O24","v":29.3},{"$f":"MIN(Q24,K24,H24)","v":26.723076923076924}]
["Rothoblaas",null,"WHT plate 540","-",30,"LBA 4x60",70.8,49.015384615384612,70.599999999999994,1.25,56.48,"2x M16*190","Rothoblaas VIN-FIX PRO",null,34.200000000000003,1,{"$f":"P25*O25","v":34.200000000000003},{"$f":"MIN(Q25,K25,H25)","v":34.200000000000003}]
["Rothoblaas",null,"WHT340 + Hilti Anker","-",14,"LBA 4x60",27,18.692307692307693,42,1.25,33.6,"M16*135","Hilti HST3",44.2,18,1,{"$f":"O26*P26","v":18},{"$f":"MIN(H26,K26,Q26)","v":18}]
["Rothoblaas",null,"WHT440 + Hilti Anker","-",20,"LBA 4x60",38.6,26.723076923076924,42,1.25,33.6,"M16*135","Hilti HST3",44.2,18,1,18,18]
["Rothoblaas",null,"WHT plate 540 +Hilti Anker","-",30,"LBA 4x60",70.8,49.015384615384612,70.599999999999994,1.25,56.48,"2x M16*135","Hilti HST3",82,24,1,{"$f":"O28*P28","v":24},24]
["Simpson Strong Tie",null,"HTT4","US50/50/8",18,"CNA 4x60",{"$f":"MIN((E29-3.5)*2.36,31,43/kmod)","v":31},21.461538461538463,null,null,null,"M16*123","BOAX-II M16-123/5",{"$f":"25.1*1.4","v":35.14},{"$f":"9.5*1.4","v":13.299999999999999},1,13.299999999999999,13.299999999999999]
["Simpson Strong Tie",null,"HTT5","US50/50/9",18,"CNA 4x60",{"$f":"MIN((E30-3.5)*2.36,31,43/kmod)","v":31},21.461538461538463,null,null,null,"M16*123","BOAX-II M16-123/5",{"$f":"25.1*1.4","v":35.14},{"$f":"9.5*1.4","v":13.299999999999999},1,13.299999999999999,13.299999999999999]
["Simpson Strong Tie",null,"HTT22E","US50/50/9",26,"CNA 4x60",{"$f":"MIN((E31-3.5)*2.36,53.1, 57.5/kmod)","v":53.099999999999994},36.761538461538457,null,null,null,"M16*123","BOAX-II M16-123/5",{"$f":"25.1*1.4","v":35.14},{"$f":"9.5*1.4","v":13.299999999999999},1,13.299999999999999,13.299999999999999]
["Simpson Strong Tie",null,"AH39050_2","US40/50/10",7,"CNA 4x60",{"$f":"MIN(E32*2.36,14.8/kmod)","v":14.8},11.384615384615387,null,null,null,"M12*103","BOAX-II M12-103/5",{"$f":"13.4*1.4","v":18.759999999999998},{"$f":"4.8*1.4","v":6.72},0.33333333333333331,2.2399999999999998,2.2399999999999998]
["Simpson Strong Tie",null,"HD340M12G","15-20 mm",13,"CNA 4x60",{"$f":"MIN(E33*2.36, 17.8/kmod)","v":17.8},13.692307692307692,null,null,null,"M12*103","BOAX-II M12-103/5",{"$f":"13.4*1.4","v":18.759999999999998},{"$f":"4.8*1.4","v":6.72},{"$f":"1/1.2","v":0.83333333333333337},5.6,5.6]
["Simpson Strong Tie",null,"HD420M16G","15-20 mm",13,"CNA 4x60",{"$f":"MIN(E34*2.36, 26.8/kmod)","v":26.8},20.615384615384617,null,null,null,"M16*123","BOAX-II M16-123/5",{"$f":"25.1*1.4","v":35.14},{"$f":"9.5*1.4","v":13.299999999999999},{"$f":"1/1.2","v":0.83333333333333337},11.083333333333332,11.083333333333332]
["Simpson Strong Tie",null,"HTT4 + Hilti Anker","US50/50/8",17,"CNA 4x60",{"$f":"MIN((E35-3.5)*2.36,31,43/kmod)","v":31},21.461538461538463,null,null,null,"M16*135","Hilti HST3",44.2,18,1,18,18]
["Simpson Strong Tie",null,"HTT5 + Hilti Anker","US50/50/9",17,"CNA 4x60",{"$f":"MIN((E36-3.5)*2.36,31,43/kmod)","v":31},21.461538461538463,null,null,null,"M16*135","Hilti HST3",44.2,18,1,18,18]
["Simpson Strong Tie",null,"HTT22E + Hilti Anker","US50/50/9",26,"CNA 4x60",{"$f":"MIN((E37-3.5)*2.36,53.1, 57.5/kmod)","v":53.099999999999994},36.761538461538457,null,null,null,"M16*135","Hilti HST3",44.2,18,1,18,18]
["Simpson Strong Tie",null,"AH39050_2 + Hilti Anker","US40/50/10",7,"CNA 4x60",{"$f":"MIN(E38*2.36,14.8/kmod)","v":14.8},11.384615384615387,null,null,null,"M12*105","Hilti HST3",28.3,13.3,0.33333333333333331,4.4333333333333336,4.4333333333333336]
["Simpson Strong Tie",null,"HD340M12G + Hilti Anker","15-20 mm",13,"CNA 4x60",{"$f":"MIN(E39*2.36, 17.8/kmod)","v":17.8},13.692307692307692,null,null,null,"M12*105","Hilti HST3",28.3,13.3,{"$f":"1/1.2","v":0.83333333333333337},11.083333333333334,11.083333333333334]
["Simpson Strong Tie",null,"HD420M16G + Hilti Anker","15-20 mm",13,"CNA 4x60",{"$f":"MIN(E40*2.36, 26.8/kmod)","v":26.8},20.615384615384617,null,null,null,"M16*135","Hilti HST3",44.2,18,{"$f":"1/1.2","v":0.83333333333333337},15,15]
[]
["Schubsicherung",null,"Holz-Beton"]
["Rothoblaas"]
["Simpson Strong Tie"]
[]
[]
[null,null,null,null,"Holz",null,null,null,"Stahl",null,null,"Betonanker",null,null,"maßgebend(min Holz/Stahl)"]
["Hersteller",null,"Typ","Unterlegscheibe","Anzahl Nägel","Ankernagel LBA","R1,k,timber","R1,d,timber","R1,k,steel","gamma ","R1,d,steel","Anker","Hersteller","Rv,d,cracked"]
["Simpson Strong Tie",null,"AE 76-R (Beton)","U40/50/10",9,"CNA 4x60",{"$f":"11.2/2","v":5.6},{"$f":"G49*kmod/ymholz","v":4.3076923076923075},null,null,null,"M12*103","BOAX-II M12-103/5",{"$f":"13.4*1.4","v":18.759999999999998},{"$f":"MIN(H49,K49)","v":4.3076923076923075}]
["Simpson Strong Tie",null,"AE 116 (Beton)","U40/50/10G-B",12,"CNA 4x60",{"$f":"27.7/2","v":13.85},10.653846153846153,null,null,null,"2x M12*103","BOAX-II M12-103/5",{"$f":"13.4*1.4*2","v":37.519999999999996},{"$f":"MIN(H50,K50)","v":10.653846153846153}]
["Simpson Strong Tie",null,"AE 76-R + Hilti Anker","U40/50/10",9,"CNA 4x60",{"$f":"11.2/2","v":5.6},4.3076923076923075,null,null,null,"M12*105","Hilti HST3",22.6,4.3076923076923075]
["Simpson Strong Tie",null,"AE 116 + Hilti Anker","U40/50/10G-B",12,"CNA 4x60",{"$f":"27.7/2","v":13.85},10.653846153846153,null,null,null,"2 x M12*105","Hilti HST3",20,10.653846153846153]
["Rothoblaas",null,"Titan F TCF200 (Beton)","-",30,"LBA 4x60",35.5,27.307692307692307,null,null,null,"2 x M12*130","VIN-FIX PRO 5.8",29.7,27.307692307692307]
["Rothoblaas",null,"Titan Plate C TCP200 (Beton)","-",30,"LBA 4x60",55.6,42.769230769230766,21.8,1.25,{"$f":"I54/J54","v":17.440000000000001},"2 x M12*130","VIN-FIX PRO 5.8 ",10.1,17.440000000000001]
["Rothoblaas",null,"Titan F TCF200 + Hilti Anker","-",30,"LBA 4x60",35.5,27.307692307692307,null,null,null,"2 x M12*105","Hilti HST3",20,27.307692307692307]
["Rothoblaas",null,"TitanPlate TCP200 + Hilti Anker","-",30,"LBA 4x60",55.6,42.769230769230766,21.8,1.25,{"$f":"I56/J56","v":17.440000000000001},"2 x M12*105","Hilti HST3",20,{"$f":"MIN(H56,K56)","v":17.440000000000001}]
[]
["Geometrie Schubwinkel"]
[]
["Hersteller",null,"Typ","Abstand Kraft - Dübel","Dübelabstand"]
["Simpson Strong Tie",null,"AE 76-R (Beton)",{"$f":"48/2","v":24},{"$f":"76/2","v":38}]
["Simpson Strong Tie",null,"AE 116 (Beton)",{"$f":"48/2","v":24},{"$f":"116/2","v":58}]
["Simpson Strong Tie",null,"AE 76-R + Hilti Anker",{"$f":"D61","v":24},{"$f":"E61","v":38}]
["Simpson Strong Tie",null,"AE 116 + Hilti Anker",{"$f":"D62","v":24},{"$f":"E62","v":58}]
["Rothoblaas",null,"Titan F TCF200 (Beton)",39.5,150]
["Rothoblaas",null,"Titan Plate C TCP200 (Beton)",180,150,"Montagekerbe an Holz-Beton-Schnittstelle"]
["Rothoblaas",null,"Titan F TCF200 + Hilti Anker",{"$f":"D65","v":39.5},{"$f":"E65","v":150}]
["Rothoblaas",null,"TitanPlate TCP200 + Hilti Anker",{"$f":"D66","v":180},{"$f":"E66","v":150},"Montagekerbe an Holz-Beton-Schnittstelle"]

{"sheet":"Titan F TCF200 (Beton)","index":5,"n_rows":0,"n_cols":0,"rows_kept":0,"cut":false,"hidden":true,"merged":[]}

{"sheet":"WHT340","index":6,"n_rows":0,"n_cols":0,"rows_kept":0,"cut":false,"hidden":true,"merged":[]}

{"sheet":"WHT440","index":7,"n_rows":0,"n_cols":0,"rows_kept":0,"cut":false,"hidden":true,"merged":[]}

{"sheet":"WHT plate 540","index":8,"n_rows":0,"n_cols":0,"rows_kept":0,"cut":false,"hidden":true,"merged":[]}

{"sheet":"WHT340 + Hilti Anker","index":9,"n_rows":0,"n_cols":0,"rows_kept":0,"cut":false,"hidden":true,"merged":[]}

{"sheet":"WHT440 + Hilti Anker","index":10,"n_rows":0,"n_cols":0,"rows_kept":0,"cut":false,"hidden":true,"merged":[]}

{"sheet":"WHT plate 540 +Hilti Anker","index":11,"n_rows":0,"n_cols":0,"rows_kept":0,"cut":false,"hidden":true,"merged":[]}

{"sheet":"HTT4","index":12,"n_rows":0,"n_cols":0,"rows_kept":0,"cut":false,"hidden":true,"merged":[]}

{"sheet":"HTT5","index":13,"n_rows":0,"n_cols":0,"rows_kept":0,"cut":false,"hidden":true,"merged":[]}

{"sheet":"HTT22E","index":14,"n_rows":0,"n_cols":0,"rows_kept":0,"cut":false,"hidden":true,"merged":[]}

{"sheet":"AH39050_2","index":15,"n_rows":0,"n_cols":0,"rows_kept":0,"cut":false,"hidden":true,"merged":[]}

{"sheet":"HD340M12G","index":16,"n_rows":0,"n_cols":0,"rows_kept":0,"cut":false,"hidden":true,"merged":[]}

{"sheet":"HD420M16G","index":17,"n_rows":0,"n_cols":0,"rows_kept":0,"cut":false,"hidden":true,"merged":[]}

{"sheet":"HTT4 + Hilti Anker","index":18,"n_rows":0,"n_cols":0,"rows_kept":0,"cut":false,"hidden":true,"merged":[]}

{"sheet":"HTT5 + Hilti Anker","index":19,"n_rows":0,"n_cols":0,"rows_kept":0,"cut":false,"hidden":true,"merged":[]}

{"sheet":"HTT22E + Hilti Anker","index":20,"n_rows":0,"n_cols":0,"rows_kept":0,"cut":false,"hidden":true,"merged":[]}

{"sheet":"AH39050_2 + Hilti Anker","index":21,"n_rows":0,"n_cols":0,"rows_kept":0,"cut":false,"hidden":true,"merged":[]}

{"sheet":"HD340M12G + Hilti Anker","index":22,"n_rows":0,"n_cols":0,"rows_kept":0,"cut":false,"hidden":true,"merged":[]}

{"sheet":"HD420M16G + Hilti Anker","index":23,"n_rows":0,"n_cols":0,"rows_kept":0,"cut":false,"hidden":true,"merged":[]}

{"sheet":"AE 76-R (Beton)","index":24,"n_rows":0,"n_cols":0,"rows_kept":0,"cut":false,"hidden":true,"merged":[]}

{"sheet":"AE 116 (Beton)","index":25,"n_rows":0,"n_cols":0,"rows_kept":0,"cut":false,"hidden":true,"merged":[]}

{"sheet":"AE 76-R + Hilti Anker","index":26,"n_rows":0,"n_cols":0,"rows_kept":0,"cut":false,"hidden":true,"merged":[]}

{"sheet":"AE 116 + Hilti Anker","index":27,"n_rows":0,"n_cols":0,"rows_kept":0,"cut":false,"hidden":true,"merged":[]}

{"sheet":"Titan Plate C TCP200 (Beton)","index":28,"n_rows":0,"n_cols":0,"rows_kept":0,"cut":false,"hidden":true,"merged":[]}

{"sheet":"Titan F TCF200 + Hilti Anker","index":29,"n_rows":0,"n_cols":0,"rows_kept":0,"cut":false,"hidden":true,"merged":[]}

{"sheet":"TitanPlate TCP200 + Hilti Anker","index":30,"n_rows":0,"n_cols":0,"rows_kept":0,"cut":false,"hidden":true,"merged":[]}

{"sheet":"Titan F TCF200","index":31,"n_rows":0,"n_cols":0,"rows_kept":0,"cut":false,"hidden":true,"merged":[]}

{"sheet":"AE 76-R","index":32,"n_rows":0,"n_cols":0,"rows_kept":0,"cut":false,"hidden":true,"merged":[]}

{"sheet":"AE 116","index":33,"n_rows":0,"n_cols":0,"rows_kept":0,"cut":false,"hidden":true,"merged":[]}

{"sheet":"Typ V 65x135x90","index":34,"n_rows":0,"n_cols":0,"rows_kept":0,"cut":false,"hidden":true,"merged":[]}

{"sheet":"BAN2025xx","index":35,"n_rows":0,"n_cols":0,"rows_kept":0,"cut":false,"hidden":true,"merged":[]}

{"sheet":"BAN208025 ","index":36,"n_rows":0,"n_cols":0,"rows_kept":0,"cut":false,"hidden":true,"merged":[]}

{"sheet":"BAN2040xx","index":37,"n_rows":0,"n_cols":0,"rows_kept":0,"cut":false,"hidden":true,"merged":[]}